Workbook

Sheet Accueil (hidden)
A2: Grand-livre automatique
C3: ="Activer une case de la marge gauche du GL pour les réglages" & IF('Grand-livre'!D120=1," (ou Ctrl + r)."," (ou Alt pomme + r).") -> Activer une case de la marge gauche du GL pour les réglages (ou Ctrl + r). | G3: feuille suivante
B5: Ce qu'il fait : | C5: - Montre les opérations écriture par écriture
C6: - Montre des opérations groupées
C7: - Montre ou cache les soldes pour balance
C8: - Montre ou cache le compte de résultat et le Bilan
C9: - Tire au sort des questions pour s'entraîner
B11: Utile pour : | C11: - Corriger des exercices progressivement et de façon dynamique
C12: - Corriger des tests d'élèves en entrant les erreurs commises
C13: - Morceler un exercice en plusieurs parties
C14: - Faire des démonstrations
C15: - Faire des simulations
C16: - Jouer avec le "blitz" (tirer au sort un libellé puis vérifier la réponse)
C17: - Préparer les feuilles de comptes en T vides
C18: - Imprimer des corrigés
C19: - …
D21: Propriétés de ce grand-livre
C23: Nom de l'exercice* : | D23: March_Gym_solution
C24: Source de la donnée : | D24: exercice :
D25: manuel : | E25: La compta un jeu d'enfant
D26: fichier joint : | E26: March_Gym…pdf
D27: cd-rom :
C29: Auteur de ce GL : | D29: © Y. Péguiron
C31: Date de création : | D31: Version octobre 2014
C33: Niveau : | D33: Gymnase
C35: Sujet comptable : | D35: Clôture marchandises avec groupements
C37: Plan comptable choisi pour la création : | D37: ='Plan comptable'!O54 -> Plan PME 2014 - version LEP
B38: (Réglage dans la feuille "Plan comptable")
C39: Remarques : | D39: Exercice avec comptes marchandises de regroupement (32 et 42).
B43: * Ce nom apparaît un haut à gauche
B44: à l'impression de la feuille du GL
B104: FALSE

Sheet Grand-livre
A1: =Accueil!D23 -> March_Gym_solution | C1: =IF(D1>0,"BN","") ->  | V1: =Libellés!C39 -> 20 | AY1: =$G$89 -> 0
D2: =IF(B3="","",VLOOKUP(B3,Plancompta,3)) -> + | G2: =IF(B3="","",VLOOKUP(B3,Plancompta,4)) -> - | J2: =IF(H3="","",VLOOKUP(H3,Plancompta,3)) -> + | M2: =IF(H3="","",VLOOKUP(H3,Plancompta,4)) -> - | P2: =IF(N3="","",VLOOKUP(N3,Plancompta,3)) -> + | S2: =IF(N3="","",VLOOKUP(N3,Plancompta,4)) -> - | V2: =IF(T3="","",VLOOKUP(T3,Plancompta,3)) -> - | Y2: =IF(T3="","",VLOOKUP(T3,Plancompta,4)) -> + | AC2: =IF(AA3="","",VLOOKUP(AA3,Plancompta,3)) -> - | AF2: =IF(AA3="","",VLOOKUP(AA3,Plancompta,4)) -> + | AI2: =IF(AG3="","",VLOOKUP(AG3,Plancompta,3)) ->  | AL2: =IF(AG3="","",VLOOKUP(AG3,Plancompta,4)) ->  | AO2: =IF(AM3="","",VLOOKUP(AM3,Plancompta,3)) ->  | AR2: =IF(AM3="","",VLOOKUP(AM3,Plancompta,4)) ->  | AU2: =IF(AS3="","",VLOOKUP(AS3,Plancompta,3)) ->  | AX2: =IF(AS3="","",VLOOKUP(AS3,Plancompta,4)) ->  | BG2: Résultat avec no ou avec nom
B3: 1000 | D3: =IF(B3="","",B3 & " " & VLOOKUP(B3,Plancompta,2)) -> 1000 Trésorerie | H3: 1100 | J3: =IF(H3="","",H3 & " " & VLOOKUP(H3,Plancompta,2)) -> 1100 Créances s/déb. | N3: 1200 | P3: =IF(N3="","",N3 & " " & VLOOKUP(N3,Plancompta,2)) -> 1200 Stock | T3: 2000 | V3: =IF(T3="","",T3 & " " & VLOOKUP(T3,Plancompta,2)) -> 2000 Fournisseurs | AA3: 2800 | AC3: =IF(AA3="","",AA3 & " " & VLOOKUP(AA3,Plancompta,2)) -> 2800 Capital | AI3: =IF(AG3="","",AG3 & " " & VLOOKUP(AG3,Plancompta,2)) ->  | AO3: =IF(AM3="","",AM3 & " " & VLOOKUP(AM3,Plancompta,2)) ->  | AU3: =IF(AS3="","",AS3 & " " & VLOOKUP(AS3,Plancompta,2)) ->  | BG3: =IF(D107=TRUE,5,0) -> 5 | BH3: FALSE | BI3: =IF(BH3=TRUE,6,4) -> 4 | BJ3: Ligne vide | BK3: FALSE
D4: si | E4: 20000 | F4: 1) | G4: 15000 | J4: si | K4: 5000 | L4: 9) | M4: 800 | P4: si | Q4: 35000 | V4: 4) | W4: 2000 | X4: si | Y4: 8000 | AE4: si | AF4: 52000 | BD4: table | BJ4: =SUM(E4,G4,K4,M4,Q4,S4,W4,Y4,AD4,AF4,AJ4,AL4,AP4,AR4,AV4,AX4) -> 137800
D5: 5) | E5: 15000 | F5: 3) | G5: 3000 | J5: 6) | K5: 60000 | L5: 12) | M5: 20000 | P5: st+ | Q5: 7000 | V5: 10) | W5: 11400 | X5: 2) | Y5: 35000 | BB5: B11/22 | BC5: =IF(INT(BD5/2)=BD5/2,1,2) -> 2 | BD5: =B22 -> 41 | BE5: =IF(BC5=2,BH5*-1,BH5) -> 12400 | BF5: =D3 -> 1000 Trésorerie | BG5: =LEFT(BF5,4) -> 1000 | BH5: =C22 -> -12400 | BI5: =LEFT(RIGHT(BF5,LEN(BF5)-$BG$3),4) -> Trés | BJ5: =SUM(E5,G5,K5,M5,Q5,S5,W5,Y5,AD5,AF5,AJ5,AL5,AP5,AR5,AV5,AX5) -> 151400
D6: 12) | E6: 20000 | F6: 7) | G6: 2500 | L6: 13) | M6: 2000 | V6: 11) | W6: 600 | BB6: H11 | BC6: 2 | BD6: =H11 -> 45 | BE6: 40700 | BF6: =J3 -> 1100 Créances s/déb. | BG6: =LEFT(BF6,4) -> 1100 | BH6: =I11 -> -40700 | BI6: =LEFT(RIGHT(BF6,LEN(BF6)-$BG$3),4) -> Créa | BJ6: 25100
F7: 8) | G7: 500 | L7: 16) | M7: 1500 | BB7: N11 | BC7: 2 | BD7: =N11 -> 47 | BE7: 42000 | BF7: =P3 -> 1200 Stock | BG7: 1200 | BH7: =O11 -> -42000 | BI7: Stoc | BJ7: 2000 | BK7: =IF(BJ7=0,1,0) -> 0
BB8: T11 | BC8: 1 | BD8: =T11 -> 42 | BE8: 29000 | BF8: =V3 -> 2000 Fournisseurs | BG8: 2000 | BH8: =U11 -> 29000 | BI8: Four | BJ8: 0 | BK8: =IF(BJ8=0,1,0) -> 1
BB9: B22 | BC9: 2 | BD9: =B22 -> 41 | BE9: 12400 | BF9: =D14 -> 0 | BG9: 0 | BH9: =C22 -> -12400 | BJ9: 0 | BK9: =IF(BJ9=0,1,0) -> 1
BB10: H22 | BC10: 1 | BD10: =H22 -> 0 | BE10: 0 | BF10: =J14 -> 4200 Achats bruts | BG10: 4200 | BH10: =I22 -> 0 | BI10: Acha | BJ10: 0 | BK10: =IF(BJ10=0,1,0) -> 1
F11: 10) | G11: 11400 | H11: 45 | I11: =K11-M11 -> -40700 | J11: =IF(K11=0,"",I12) ->  | K11: =IF(K4+M4=0,0,IF(SUM(K4:K10)>SUM(M4:M10),0,SUM(M4:M10)-SUM(K4:K10))) -> 0 | L11: =IF(M11=0,"",I12) -> v/Bi | M11: =IF(K4+M4=0,0,IF(SUM(M4:M10)>SUM(K4:K10),0,SUM(K4:K10)-SUM(M4:M10))) -> 40700 | N11: 47 | O11: =Q11-S11 -> -42000 | P11: =IF(Q11=0,"",O12) ->  | Q11: =IF(Q4+S4=0,0,IF(SUM(Q4:Q10)>SUM(S4:S10),0,SUM(S4:S10)-SUM(Q4:Q10))) -> 0 | R11: =IF(S11=0,"",O12) -> v/Bi | S11: =IF(Q4+S4=0,0,IF(SUM(S4:S10)>SUM(Q4:Q10),0,SUM(Q4:Q10)-SUM(S4:S10))) -> 42000 | T11: 42 | U11: =W11-Y11 -> 29000 | V11: =IF(W11=0,"",U12) -> v/Bi | W11: =IF(W4+Y4=0,0,IF(SUM(W4:W10)>SUM(Y4:Y10),0,SUM(Y4:Y10)-SUM(W4:W10))) -> 29000 | X11: =IF(Y11=0,"",U12) ->  | Y11: =IF(W4+Y4=0,0,IF(SUM(Y4:Y10)>SUM(W4:W10),0,SUM(W4:W10)-SUM(Y4:Y10))) -> 0 | AA11: 46 | AB11: =AD11-AF11 -> 52000 | AC11: =IF(AD11=0,"",AB12) -> v/Bi | AD11: =IF(AD4+AF4=0,0,IF(SUM(AD4:AD10)>SUM(AF4:AF10),0,SUM(AF4:AF10)-SUM(AD4:AD10))) -> 52000 | AE11: =IF(AF11=0,"",AB12) ->  | AF11: =IF(AD4+AF4=0,0,IF(SUM(AF4:AF10)>SUM(AD4:AD10),0,SUM(AD4:AD10)-SUM(AF4:AF10))) -> 0 | AH11: =AJ11-AL11 -> 0 | AI11: =IF(AJ11=0,"",AH12) ->  | AJ11: =IF(AJ4+AL4=0,0,IF(SUM(AJ4:AJ10)>SUM(AL4:AL10),0,SUM(AL4:AL10)-SUM(AJ4:AJ10))) -> 0 | AK11: =IF(AL11=0,"",AH12) ->  | AL11: =IF(AJ4+AL4=0,0,IF(SUM(AL4:AL10)>SUM(AJ4:AJ10),0,SUM(AJ4:AJ10)-SUM(AL4:AL10))) -> 0 | AN11: =AP11-AR11 -> 0 | AO11: =IF(AP11=0,"",AN12) ->  | AP11: =IF(AP4+AR4=0,0,IF(SUM(AP4:AP10)>SUM(AR4:AR10),0,SUM(AR4:AR10)-SUM(AP4:AP10))) -> 0 | AQ11: =IF(AR11=0,"",AN12) ->  | AR11: =IF(AP4+AR4=0,0,IF(SUM(AR4:AR10)>SUM(AP4:AP10),0,SUM(AP4:AP10)-SUM(AR4:AR10))) -> 0 | AT11: =AV11-AX11 -> 0 | AU11: =IF(AV11=0,"",AT12) ->  | AV11: =IF(AV4+AX4=0,0,IF(SUM(AV4:AV10)>SUM(AX4:AX10),0,SUM(AX4:AX10)-SUM(AV4:AV10))) -> 0 | AW11: =IF(AX11=0,"",AT12) ->  | AX11: =IF(AV4+AX4=0,0,IF(SUM(AX4:AX10)>SUM(AV4:AV10),0,SUM(AV4:AV10)-SUM(AX4:AX10))) -> 0 | BB11: N22 | BC11: 2 | BD11: =N22 -> 3 | BE11: 0 | BF11: =P14 -> 4270 Frais d'achats | BG11: 4270 | BH11: =O22 -> 0 | BI11: Frai | BJ11: 175100
F12: 14) | G12: 800 | I12: =IF(H11="","spb",IF(H11>40,$E$110,$E$111)) -> v/Bi | K12: =IF(K4+M4=0,"",SUM(K4:K11)) -> 65000 | M12: =IF(K4+M4=0,"",SUM(M4:M11)) -> 65000 | O12: =IF(N11="","spb",IF(N11>40,$E$110,$E$111)) -> v/Bi | Q12: =IF(Q4+S4=0,"",SUM(Q4:Q11)) -> 42000 | S12: =IF(Q4+S4=0,"",SUM(S4:S11)) -> 42000 | U12: =IF(T11="","spb",IF(T11>40,$E$110,$E$111)) -> v/Bi | W12: =IF(W4+Y4=0,"",SUM(W4:W11)) -> 43000 | Y12: =IF(W4+Y4=0,"",SUM(Y4:Y11)) -> 43000 | AB12: =IF(AA11="","spb",IF(AA11>40,$E$110,$E$111)) -> v/Bi | AD12: =IF(AD4+AF4=0,"",SUM(AD4:AD11)) -> 52000 | AF12: =IF(AD4+AF4=0,"",SUM(AF4:AF11)) -> 52000 | AH12: =IF(AG11="","spb",IF(AG11>40,$E$110,$E$111)) -> spb | AJ12: =IF(AJ4+AL4=0,"",SUM(AJ4:AJ11)) ->  | AL12: =IF(AJ4+AL4=0,"",SUM(AL4:AL11)) ->  | AN12: =IF(AM11="","spb",IF(AM11>40,$E$110,$E$111)) -> spb | AP12: =IF(AP4+AR4=0,"",SUM(AP4:AP11)) ->  | AR12: =IF(AP4+AR4=0,"",SUM(AR4:AR11)) ->  | AT12: =IF(AS11="","spb",IF(AS11>40,$E$110,$E$111)) -> spb | AV12: =IF(AV4+AX4=0,"",SUM(AV4:AV11)) ->  | AX12: =IF(AV4+AX4=0,"",SUM(AX4:AX11)) ->  | BB12: T22 | BC12: 2 | BD12: =T22 -> 5 | BE12: 0 | BF12: =V14 -> 4280 Variation stock | BG12: 4280 | BH12: =U22 -> 0 | BI12: Vari | BJ12: 404800
F13: 15) | G13: 3000 | J13: =IF(H14="","",VLOOKUP(H14,Plancompta,3)) -> + | L13: 2 | M13: =IF(H14="","",VLOOKUP(H14,Plancompta,4)) -> - | P13: =IF(N14="","",VLOOKUP(N14,Plancompta,3)) -> + | R13: 3 | S13: =IF(N14="","",VLOOKUP(N14,Plancompta,4)) -> - | V13: =IF(T14="","",VLOOKUP(T14,Plancompta,3)) -> + | X13: 4 | Y13: =IF(T14="","",VLOOKUP(T14,Plancompta,4)) -> - | AC13: =IF(AA14="","",VLOOKUP(AA14,Plancompta,3)) -> + | AE13: 5 | AF13: =IF(AA14="","",VLOOKUP(AA14,Plancompta,4)) -> - | AI13: =IF(AG14="","",VLOOKUP(AG14,Plancompta,3)) ->  | AK13: 6 | AL13: =IF(AG14="","",VLOOKUP(AG14,Plancompta,4)) ->  | AO13: =IF(AM14="","",VLOOKUP(AM14,Plancompta,3)) ->  | AQ13: 7 | AR13: =IF(AM14="","",VLOOKUP(AM14,Plancompta,4)) ->  | AU13: =IF(AS14="","",VLOOKUP(AS14,Plancompta,3)) ->  | AW13: 8 | AX13: =IF(AS14="","",VLOOKUP(AS14,Plancompta,4)) ->  | BB13: B33 | BC13: 2 | BD13: =B33 -> 15 | BE13: 6000 | BF13: =D25 -> 5200 Ch. salariales | BG13: 5200 | BH13: =C33 -> -6000 | BI13: Ch.
F14: 17) | G14: 400 | H14: 4200 | J14: =IF(H14="","",H14 & " " & VLOOKUP(H14,Plancompta,2)) -> 4200 Achats bruts | N14: 4270 | P14: =IF(N14="","",N14 & " " & VLOOKUP(N14,Plancompta,2)) -> 4270 Frais d'achats | T14: 4280 | V14: =IF(T14="","",T14 & " " & VLOOKUP(T14,Plancompta,2)) -> 4280 Variation stock | AA14: 4900 | AC14: =IF(AA14="","",AA14 & " " & VLOOKUP(AA14,Plancompta,2)) -> 4900 Déduc. obtenues | AI14: =IF(AG14="","",AG14 & " " & VLOOKUP(AG14,Plancompta,2)) ->  | AO14: =IF(AM14="","",AM14 & " " & VLOOKUP(AM14,Plancompta,2)) ->  | AU14: =IF(AS14="","",AS14 & " " & VLOOKUP(AS14,Plancompta,2)) ->  | BB14: H33 | BC14: 2 | BD14: =H33 -> 17 | BE14: 3000 | BF14: =J25 -> 6000 Ch. de locaux | BG14: 6000 | BH14: =I33 -> -3000 | BI14: Ch. | BJ14: 400
F15: 18) | G15: 6000 | J15: 1) | K15: 15000 | L15: 4) | M15: 2000 | P15: 3) | Q15: 3000 | X15: st+ | Y15: 7000 | AE15: 11) | AF15: 600 | BB15: N33 | BC15: 2 | BD15: =N33 -> 19 | BE15: 3300 | BF15: =P25 -> 6280 Frais expédition | BG15: 6280 | BH15: =O33 -> -3300 | BI15: Frai | BJ15: 33600
J16: 2) | K16: 35000 | BB16: T33 | BC16: 2 | BD16: =T33 -> 21 | BE16: 400 | BF16: =V25 -> 6500 Ch. admin. | BG16: 6500 | BH16: =U33 -> -400 | BI16: Ch. | BJ16: 35000 | BK16: =IF(BJ16=0,1,0) -> 0
BB17: B44 | BC17: 1 | BD17: =B44 -> 0 | BE17: 0 | BF17: =D36 -> 3200 Ventes brutes | BG17: 3200 | BH17: =C44 -> 0 | BI17: Vent | BJ17: 0
L18: v/42 | M18: =SUM(K15:K17)-SUM(M15:M17) -> 48000 | R18: v/42 | S18: =SUM(Q15:Q17)-SUM(S15:S17) -> 3000 | V18: v/42 | W18: =SUM(Y15:Y17)-SUM(W15:W17) -> 7000 | AC18: v/42 | AD18: =SUM(AF15:AF17)-SUM(AD15:AD17) -> 600 | BB18: H44 | BC18: 1 | BD18: =H44 -> 4 | BE18: 0 | BF18: =J36 -> 3800 Déductions / ventes | BG18: 3800 | BH18: =I44 -> 0 | BI18: Dédu | BJ18: 58600 | BK18: =IF(BJ18=0,1,0) -> 0
BB19: N44 | BC19: 1 | BD19: =N44 -> 6 | BE19: 0 | BF19: =P36 -> 3805 Pertes /clients | BG19: 3805 | BH19: =O44 -> 0 | BI19: Pert | BJ19: 0 | BK19: =IF(BJ19=0,1,0) -> 1
BB20: T44 | BC20: 1 | BD20: =T44 -> 2 | BE20: 70200 | BF20: =V36 -> 32 Ventes de march. | BG20: 32 V | BH20: =U44 -> 70200 | BI20: ntes | BJ20: 0 | BK20: =IF(BJ20=0,1,0) -> 1
BD21: B89 | BF21: =D73 -> 9000 Résultat | BG21: 9000 | BH21: =C89 -> 14100 | BI21: Résu | BJ21: 0 | BK21: =IF(BJ21=0,1,0) -> 1
B22: 41 | C22: =E22-G22 -> -12400 | D22: =IF(E22=0,"",C23) ->  | E22: =IF(E4+G4=0,0,IF(SUM(E4:E21)>SUM(G4:G21),0,SUM(G4:G21)-SUM(E4:E21))) -> 0 | F22: =IF(G22=0,"",C23) -> v/Bi | G22: =IF(E4+G4=0,0,IF(SUM(G4:G21)>SUM(E4:E21),0,SUM(E4:E21)-SUM(G4:G21))) -> 12400 | I22: =K22-M22 -> 0 | J22: =IF(K22=0,"",I23) ->  | K22: =IF(K15+M15=0,0,IF(SUM(K15:K21)>SUM(M15:M21),0,SUM(M15:M21)-SUM(K15:K21))) -> 0 | L22: =IF(M22=0,"",I23) ->  | M22: =IF(K15+M15=0,0,IF(SUM(M15:M21)>SUM(K15:K21),0,SUM(K15:K21)-SUM(M15:M21))) -> 0 | N22: 3 | O22: =Q22-S22 -> 0 | P22: =IF(Q22=0,"",O23) ->  | Q22: =IF(Q15+S15=0,0,IF(SUM(Q15:Q21)>SUM(S15:S21),0,SUM(S15:S21)-SUM(Q15:Q21))) -> 0 | R22: =IF(S22=0,"",O23) ->  | S22: =IF(Q15+S15=0,0,IF(SUM(S15:S21)>SUM(Q15:Q21),0,SUM(Q15:Q21)-SUM(S15:S21))) -> 0 | T22: 5 | U22: =W22-Y22 -> 0 | V22: =IF(W22=0,"",U23) ->  | W22: =IF(W15+Y15=0,0,IF(SUM(W15:W21)>SUM(Y15:Y21),0,SUM(Y15:Y21)-SUM(W15:W21))) -> 0 | X22: =IF(Y22=0,"",U23) ->  | Y22: =IF(W15+Y15=0,0,IF(SUM(Y15:Y21)>SUM(W15:W21),0,SUM(W15:W21)-SUM(Y15:Y21))) -> 0 | AA22: 7 | AB22: =AD22-AF22 -> 0 | AC22: =IF(AD22=0,"",AB23) ->  | AD22: =IF(AD15+AF15=0,0,IF(SUM(AD15:AD21)>SUM(AF15:AF21),0,SUM(AF15:AF21)-SUM(AD15:AD21))) -> 0 | AE22: =IF(AF22=0,"",AB23) ->  | AF22: =IF(AD15+AF15=0,0,IF(SUM(AF15:AF21)>SUM(AD15:AD21),0,SUM(AD15:AD21)-SUM(AF15:AF21))) -> 0 | AH22: =AJ22-AL22 -> 0 | AI22: =IF(AJ22=0,"",AH23) ->  | AJ22: =IF(AJ15+AL15=0,0,IF(SUM(AJ15:AJ21)>SUM(AL15:AL21),0,SUM(AL15:AL21)-SUM(AJ15:AJ21))) -> 0 | AK22: =IF(AL22=0,"",AH23) ->  | AL22: =IF(AJ15+AL15=0,0,IF(SUM(AL15:AL21)>SUM(AJ15:AJ21),0,SUM(AJ15:AJ21)-SUM(AL15:AL21))) -> 0 | AN22: =AP22-AR22 -> 0 | AO22: =IF(AP22=0,"",AN23) ->  | AP22: =IF(AP15+AR15=0,0,IF(SUM(AP15:AP21)>SUM(AR15:AR21),0,SUM(AR15:AR21)-SUM(AP15:AP21))) -> 0 | AQ22: =IF(AR22=0,"",AN23) ->  | AR22: =IF(AP15+AR15=0,0,IF(SUM(AR15:AR21)>SUM(AP15:AP21),0,SUM(AP15:AP21)-SUM(AR15:AR21))) -> 0 | AT22: =AV22-AX22 -> 0 | AU22: =IF(AV22=0,"",AT23) ->  | AV22: =IF(AV15+AX15=0,0,IF(SUM(AV15:AV21)>SUM(AX15:AX21),0,SUM(AX15:AX21)-SUM(AV15:AV21))) -> 0 | AW22: =IF(AX22=0,"",AT23) ->  | AX22: =IF(AV15+AX15=0,0,IF(SUM(AX15:AX21)>SUM(AV15:AV21),0,SUM(AV15:AV21)-SUM(AX15:AX21))) -> 0 | BB22: AA11 | BC22: 1 | BD22: =AA11 -> 46 | BE22: 52000 | BF22: =AC3 -> 2800 Capital | BG22: 2800 | BH22: =AB11 -> 52000 | BI22: Capi | BJ22: =SUM(E22,G22,#REF!,M22,Q22,S22,W22,Y22,AD22,AF22,AJ22,AL22,AP22,AR22,AV22,AX22) -> 
C23: =IF(B22="","spb",IF(B22>40,$E$110,$E$111)) -> v/Bi | E23: =IF(E4+G4=0,"",SUM(E4:E22)) -> 55000 | G23: =IF(E4+G4=0,"",SUM(G4:G22)) -> 55000 | I23: =IF(H22="","spb",IF(H22>40,$E$110,$E$111)) -> spb | K23: =IF(K15+M15=0,"",SUM(K15:K22)) -> 50000 | M23: =IF(K15+M15=0,"",SUM(M15:M22)) -> 50000 | O23: =IF(N22="","spb",IF(N22>40,$E$110,$E$111)) -> v/R. | Q23: =IF(Q15+S15=0,"",SUM(Q15:Q22)) -> 3000 | S23: =IF(Q15+S15=0,"",SUM(S15:S22)) -> 3000 | U23: =IF(T22="","spb",IF(T22>40,$E$110,$E$111)) -> v/R. | W23: =IF(W15+Y15=0,"",SUM(W15:W22)) -> 7000 | Y23: =IF(W15+Y15=0,"",SUM(Y15:Y22)) -> 7000 | AB23: =IF(AA22="","spb",IF(AA22>40,$E$110,$E$111)) -> v/R. | AD23: =IF(AD15+AF15=0,"",SUM(AD15:AD22)) -> 600 | AF23: =IF(AD15+AF15=0,"",SUM(AF15:AF22)) -> 600 | AH23: =IF(AG22="","spb",IF(AG22>40,$E$110,$E$111)) -> spb | AJ23: =IF(AJ15+AL15=0,"",SUM(AJ15:AJ22)) ->  | AL23: =IF(AJ15+AL15=0,"",SUM(AL15:AL22)) ->  | AN23: =IF(AM22="","spb",IF(AM22>40,$E$110,$E$111)) -> spb | AP23: =IF(AP15+AR15=0,"",SUM(AP15:AP22)) ->  | AR23: =IF(AP15+AR15=0,"",SUM(AR15:AR22)) ->  | AT23: =IF(AS22="","spb",IF(AS22>40,$E$110,$E$111)) -> spb | AV23: =IF(AV15+AX15=0,"",SUM(AV15:AV22)) ->  | AX23: =IF(AV15+AX15=0,"",SUM(AX15:AX22)) ->  | BB23: AG11 | BC23: 1 | BD23: =AG11 -> 0 | BE23: 0 | BF23: =AI3 ->  | BH23: =AH11 -> 0 | BJ23: 231200
D24: =IF(B25="","",VLOOKUP(B25,Plancompta,3)) -> + | G24: =IF(B25="","",VLOOKUP(B25,Plancompta,4)) -> - | J24: =IF(H25="","",VLOOKUP(H25,Plancompta,3)) -> + | M24: =IF(H25="","",VLOOKUP(H25,Plancompta,4)) -> - | P24: =IF(N25="","",VLOOKUP(N25,Plancompta,3)) -> + | S24: =IF(N25="","",VLOOKUP(N25,Plancompta,4)) -> - | V24: =IF(T25="","",VLOOKUP(T25,Plancompta,3)) -> + | Y24: =IF(T25="","",VLOOKUP(T25,Plancompta,4)) -> - | AC24: =IF(AA25="","",VLOOKUP(AA25,Plancompta,3)) -> + | AF24: =IF(AA25="","",VLOOKUP(AA25,Plancompta,4)) -> - | AI24: =IF(AG25="","",VLOOKUP(AG25,Plancompta,3)) ->  | AL24: =IF(AG25="","",VLOOKUP(AG25,Plancompta,4)) ->  | AO24: =IF(AM25="","",VLOOKUP(AM25,Plancompta,3)) ->  | AR24: =IF(AM25="","",VLOOKUP(AM25,Plancompta,4)) ->  | AU24: =IF(AS25="","",VLOOKUP(AS25,Plancompta,3)) ->  | AX24: =IF(AS25="","",VLOOKUP(AS25,Plancompta,4)) ->  | BB24: AM11 | BC24: 1 | BD24: =AM11 -> 0 | BE24: 0 | BF24: =AO3 ->  | BH24: =AN11 -> 0
B25: 5200 | D25: =IF(B25="","",B25 & " " & VLOOKUP(B25,Plancompta,2)) -> 5200 Ch. salariales | H25: 6000 | J25: =IF(H25="","",H25 & " " & VLOOKUP(H25,Plancompta,2)) -> 6000 Ch. de locaux | N25: 6280 | P25: =IF(N25="","",N25 & " " & VLOOKUP(N25,Plancompta,2)) -> 6280 Frais expédition | T25: 6500 | V25: =IF(T25="","",T25 & " " & VLOOKUP(T25,Plancompta,2)) -> 6500 Ch. admin. | AA25: 6700 | AC25: =IF(AA25="","",AA25 & " " & VLOOKUP(AA25,Plancompta,2)) -> 6700 ACE | AI25: =IF(AG25="","",AG25 & " " & VLOOKUP(AG25,Plancompta,2)) ->  | AO25: =IF(AM25="","",AM25 & " " & VLOOKUP(AM25,Plancompta,2)) ->  | AU25: =IF(AS25="","",AS25 & " " & VLOOKUP(AS25,Plancompta,2)) ->  | BB25: AS11 | BC25: 1 | BD25: =AS11 -> 0 | BE25: 0 | BF25: =AU3 ->  | BH25: =AT11 -> 0 | BJ25: 0
D26: 18) | E26: 6000 | J26: 15) | K26: 3000 | P26: 7) | Q26: 2500 | V26: 17) | W26: 400 | BB26: AA22 | BC26: 2 | BD26: =AA22 -> 7 | BE26: 0 | BF26: =AC14 -> 4900 Déduc. obtenues | BG26: 4900 | BH26: =AB22 -> 0 | BI26: Dédu | BJ26: 11900
C27: =$E$89 -> 14100 | P27: 14) | Q27: 800 | BB27: AG22 | BC27: 1 | BD27: =AG22 -> 0 | BE27: 0 | BF27: =AI14 ->  | BH27: =AH22 -> 0 | BJ27: 800
BB28: AM22 | BC28: 1 | BD28: =AM22 -> 0 | BE28: 0 | BF28: =AO14 ->  | BH28: =AN22 -> 0 | BJ28: 0
BB29: AS22 | BC29: 1 | BD29: =AS22 -> 0 | BE29: 0 | BF29: =AU14 ->  | BH29: =AT22 -> 0 | BJ29: 0 | BK29: =IF(BJ29=0,1,0) -> 1
BB30: AA33 | BC30: 2 | BD30: =AA33 -> 23 | BE30: 0 | BF30: =AC25 -> 6700 ACE | BG30: 6700 | BH30: =AB33 -> 0 | BI30: ACE | BJ30: 0 | BK30: =IF(BJ30=0,1,0) -> 1
BB31: AG33 | BC31: 1 | BD31: =AG33 -> 0 | BE31: 0 | BF31: =AI25 ->  | BH31: =AH33 -> 0 | BJ31: 0 | BK31: =IF(BJ31=0,1,0) -> 1
BB32: AM33 | BC32: 1 | BD32: =AM33 -> 0 | BE32: 0 | BF32: =AO25 ->  | BH32: =AN33 -> 0 | BJ32: 0 | BK32: =IF(BJ32=0,1,0) -> 1
B33: 15 | C33: =E33-G33 -> -6000 | D33: =IF(E33=0,"",C34) ->  | E33: =IF(E26+G26=0,0,IF(SUM(E26:E32)>SUM(G26:G32),0,SUM(G26:G32)-SUM(E26:E32))) -> 0 | F33: =IF(G33=0,"",C34) -> v/R. | G33: =IF(E26+G26=0,0,IF(SUM(G26:G32)>SUM(E26:E32),0,SUM(E26:E32)-SUM(G26:G32))) -> 6000 | H33: 17 | I33: =K33-M33 -> -3000 | J33: =IF(K33=0,"",I34) ->  | K33: =IF(K26+M26=0,0,IF(SUM(K26:K32)>SUM(M26:M32),0,SUM(M26:M32)-SUM(K26:K32))) -> 0 | L33: =IF(M33=0,"",I34) -> v/R. | M33: =IF(K26+M26=0,0,IF(SUM(M26:M32)>SUM(K26:K32),0,SUM(K26:K32)-SUM(M26:M32))) -> 3000 | N33: 19 | O33: =Q33-S33 -> -3300 | P33: =IF(Q33=0,"",O34) ->  | Q33: =IF(Q26+S26=0,0,IF(SUM(Q26:Q32)>SUM(S26:S32),0,SUM(S26:S32)-SUM(Q26:Q32))) -> 0 | R33: =IF(S33=0,"",O34) -> v/R. | S33: =IF(Q26+S26=0,0,IF(SUM(S26:S32)>SUM(Q26:Q32),0,SUM(Q26:Q32)-SUM(S26:S32))) -> 3300 | T33: 21 | U33: =W33-Y33 -> -400 | V33: =IF(W33=0,"",U34) ->  | W33: =IF(W26+Y26=0,0,IF(SUM(W26:W32)>SUM(Y26:Y32),0,SUM(Y26:Y32)-SUM(W26:W32))) -> 0 | X33: =IF(Y33=0,"",U34) -> v/R. | Y33: =IF(W26+Y26=0,0,IF(SUM(Y26:Y32)>SUM(W26:W32),0,SUM(W26:W32)-SUM(Y26:Y32))) -> 400 | AA33: 23 | AB33: =AD33-AF33 -> 0 | AC33: =IF(AD33=0,"",AB34) ->  | AD33: =IF(AD26+AF26=0,0,IF(SUM(AD26:AD32)>SUM(AF26:AF32),0,SUM(AF26:AF32)-SUM(AD26:AD32))) -> 0 | AE33: =IF(AF33=0,"",AB34) ->  | AF33: =IF(AD26+AF26=0,0,IF(SUM(AF26:AF32)>SUM(AD26:AD32),0,SUM(AD26:AD32)-SUM(AF26:AF32))) -> 0 | AH33: =AJ33-AL33 -> 0 | AI33: =IF(AJ33=0,"",AH34) ->  | AJ33: =IF(AJ26+AL26=0,0,IF(SUM(AJ26:AJ32)>SUM(AL26:AL32),0,SUM(AL26:AL32)-SUM(AJ26:AJ32))) -> 0 | AK33: =IF(AL33=0,"",AH34) ->  | AL33: =IF(AJ26+AL26=0,0,IF(SUM(AL26:AL32)>SUM(AJ26:AJ32),0,SUM(AJ26:AJ32)-SUM(AL26:AL32))) -> 0 | AN33: =AP33-AR33 -> 0 | AO33: =IF(AP33=0,"",AN34) ->  | AP33: =IF(AP26+AR26=0,0,IF(SUM(AP26:AP32)>SUM(AR26:AR32),0,SUM(AR26:AR32)-SUM(AP26:AP32))) -> 0 | AQ33: =IF(AR33=0,"",AN34) ->  | AR33: =IF(AP26+AR26=0,0,IF(SUM(AR26:AR32)>SUM(AP26:AP32),0,SUM(AP26:AP32)-SUM(AR26:AR32))) -> 0 | AT33: =AV33-AX33 -> 0 | AU33: =IF(AV33=0,"",AT34) ->  | AV33: =IF(AV26+AX26=0,0,IF(SUM(AV26:AV32)>SUM(AX26:AX32),0,SUM(AX26:AX32)-SUM(AV26:AV32))) -> 0 | AW33: =IF(AX33=0,"",AT34) ->  | AX33: =IF(AV26+AX26=0,0,IF(SUM(AX26:AX32)>SUM(AV26:AV32),0,SUM(AV26:AV32)-SUM(AX26:AX32))) -> 0 | BB33: AS33 | BC33: 1 | BD33: =AS33 -> 0 | BE33: 0 | BF33: =AU25 ->  | BH33: =AT33 -> 0 | BJ33: 12700
C34: =IF(B33="","spb",IF(B33>40,$E$110,$E$111)) -> v/R. | E34: =IF(E26+G26=0,"",SUM(E26:E33)) -> 6000 | G34: =IF(E26+G26=0,"",SUM(G26:G33)) -> 6000 | I34: =IF(H33="","spb",IF(H33>40,$E$110,$E$111)) -> v/R. | K34: =IF(K26+M26=0,"",SUM(K26:K33)) -> 3000 | M34: =IF(K26+M26=0,"",SUM(M26:M33)) -> 3000 | O34: =IF(N33="","spb",IF(N33>40,$E$110,$E$111)) -> v/R. | Q34: =IF(Q26+S26=0,"",SUM(Q26:Q33)) -> 3300 | S34: =IF(Q26+S26=0,"",SUM(S26:S33)) -> 3300 | U34: =IF(T33="","spb",IF(T33>40,$E$110,$E$111)) -> v/R. | W34: =IF(W26+Y26=0,"",SUM(W26:W33)) -> 400 | Y34: =IF(W26+Y26=0,"",SUM(Y26:Y33)) -> 400 | AB34: =IF(AA33="","spb",IF(AA33>40,$E$110,$E$111)) -> v/R. | AD34: =IF(AD26+AF26=0,"",SUM(AD26:AD33)) ->  | AF34: =IF(AD26+AF26=0,"",SUM(AF26:AF33)) ->  | AH34: =IF(AG33="","spb",IF(AG33>40,$E$110,$E$111)) -> spb | AJ34: =IF(AJ26+AL26=0,"",SUM(AJ26:AJ33)) ->  | AL34: =IF(AJ26+AL26=0,"",SUM(AL26:AL33)) ->  | AN34: =IF(AM33="","spb",IF(AM33>40,$E$110,$E$111)) -> spb | AP34: =IF(AP26+AR26=0,"",SUM(AP26:AP33)) ->  | AR34: =IF(AP26+AR26=0,"",SUM(AR26:AR33)) ->  | AT34: =IF(AS33="","spb",IF(AS33>40,$E$110,$E$111)) -> spb | AV34: =IF(AV26+AX26=0,"",SUM(AV26:AV33)) ->  | AX34: =IF(AV26+AX26=0,"",SUM(AX26:AX33)) ->  | BB34: AA44 | BC34: 2 | BD34: =AA44 -> 1 | BE34: 43400 | BF34: =AC36 -> 42 Charges de march. | BG34: 42 C | BH34: =AB44 -> -43400 | BI34: arge | BJ34: 25400
D35: =IF(B36="","",VLOOKUP(B36,Plancompta,3)) -> - | G35: =IF(B36="","",VLOOKUP(B36,Plancompta,4)) -> + | J35: =IF(H36="","",VLOOKUP(H36,Plancompta,3)) -> - | M35: =IF(H36="","",VLOOKUP(H36,Plancompta,4)) -> + | P35: =IF(N36="","",VLOOKUP(N36,Plancompta,3)) -> - | S35: =IF(N36="","",VLOOKUP(N36,Plancompta,4)) -> + | V35: =IF(T36="","",VLOOKUP(T36,Plancompta,3)) -> + | Y35: =IF(T36="","",VLOOKUP(T36,Plancompta,4)) -> - | AC35: =IF(AA36="","",VLOOKUP(AA36,Plancompta,3)) -> + | AF35: =IF(AA36="","",VLOOKUP(AA36,Plancompta,4)) -> - | AI35: =IF(AG36="","",VLOOKUP(AG36,Plancompta,3)) ->  | AL35: =IF(AG36="","",VLOOKUP(AG36,Plancompta,4)) ->  | AO35: =IF(AM36="","",VLOOKUP(AM36,Plancompta,3)) ->  | AR35: =IF(AM36="","",VLOOKUP(AM36,Plancompta,4)) ->  | AU35: =IF(AS36="","",VLOOKUP(AS36,Plancompta,3)) ->  | AX35: =IF(AS36="","",VLOOKUP(AS36,Plancompta,4)) ->  | BB35: AG44 | BC35: 1 | BD35: =AG44 -> 0 | BE35: 0 | BF35: =AI36 ->  | BH35: =AH44 -> 0
B36: 3200 | D36: =IF(B36="","",B36 & " " & VLOOKUP(B36,Plancompta,2)) -> 3200 Ventes brutes | H36: 3800 | J36: =IF(H36="","",H36 & " " & VLOOKUP(H36,Plancompta,2)) -> 3800 Déductions / ventes | N36: 3805 | P36: =IF(N36="","",N36 & " " & VLOOKUP(N36,Plancompta,2)) -> 3805 Pertes /clients | T36: 32 | V36: =IF(T36="","",T36 & " " & VLOOKUP(T36,Plancompta,2)) -> 32 Ventes de march. | AA36: 42 | AC36: =IF(AA36="","",AA36 & " " & VLOOKUP(AA36,Plancompta,2)) -> 42 Charges de march. | AI36: =IF(AG36="","",AG36 & " " & VLOOKUP(AG36,Plancompta,2)) ->  | AO36: =IF(AM36="","",AM36 & " " & VLOOKUP(AM36,Plancompta,2)) ->  | AU36: =IF(AS36="","",AS36 & " " & VLOOKUP(AS36,Plancompta,2)) ->  | BB36: AM44 | BC36: 1 | BD36: =AM44 -> 0 | BE36: 0 | BF36: =AO36 ->  | BH36: =AN44 -> 0 | BJ36: 0
D37: 9) | E37: 800 | F37: 5) | G37: 15000 | J37: 8) | K37: 500 | P37: 16) | Q37: 1500 | V37: 3290 | W37: =M40 -> 2500 | X37: 3200 | Y37: =E40 -> 74200 | AC37: 4200 | AD37: =M18 -> 48000 | AE37: 4280 | AF37: =W18 -> 7000 | BB37: AS44 | BC37: 1 | BD37: =AS44 -> 0 | BE37: 0 | BF37: =AU36 ->  | BH37: =AT44 -> 0 | BJ37: 149500
C38: =IF(D38>0,"BN","") ->  | F38: 6) | G38: 60000 | J38: 13) | K38: 2000 | V38: 3297 | W38: =S40 -> 1500 | AC38: 4270 | AD38: =S18 -> 3000 | AE38: 4900 | AF38: =AD18 -> 600 | BB38: B55 | BC38: =IF(INT(BD38/2)=BD38/2,1,2) -> 1 | BD38: =B55 -> 0 | BE38: 0 | BF38: =D47 ->  | BH38: =C55 -> 0 | BJ38: 67100
BB39: H55 | BC39: 1 | BD39: =H55 -> 0 | BE39: 0 | BF39: =J47 ->  | BH39: =I55 -> 0 | BJ39: 0
D40: v/32 | E40: =SUM(G37:G39)-SUM(E37:E39) -> 74200 | L40: v/32 | M40: =SUM(K37:K39)-SUM(M37:M39) -> 2500 | R40: v/32 | S40: =SUM(Q37:Q39)-SUM(S37:S39) -> 1500 | V40: CAN | AE40: CAMV | BB40: N55 | BC40: 1 | BD40: =N55 -> 0 | BE40: 0 | BF40: =P47 ->  | BH40: =O55 -> 0 | BJ40: 78200 | BK40: =IF(BJ40=0,1,0) -> 0
BB41: T55 | BC41: 1 | BD41: =T55 -> 0 | BE41: 0 | BF41: =V47 ->  | BH41: =U55 -> 0 | BJ41: 0 | BK41: =IF(BJ41=0,1,0) -> 1
BB42: AA55 | BC42: 1 | BD42: =AA55 -> 0 | BE42: 0 | BF42: =AC47 ->  | BH42: =AB55 -> 0 | BJ42: 0 | BK42: =IF(BJ42=0,1,0) -> 1
BB43: AG55 | BC43: 1 | BD43: =AG55 -> 0 | BE43: 0 | BF43: =AI47 ->  | BH43: =AH55 -> 0 | BJ43: 0 | BK43: =IF(BJ43=0,1,0) -> 1
C44: =E44-G44 -> 0 | D44: =IF(E44=0,"",C45) ->  | E44: =IF(E37+G37=0,0,IF(SUM(E37:E43)>SUM(G37:G43),0,SUM(G37:G43)-SUM(E37:E43))) -> 0 | F44: =IF(G44=0,"",C45) ->  | G44: =IF(E37+G37=0,0,IF(SUM(G37:G43)>SUM(E37:E43),0,SUM(E37:E43)-SUM(G37:G43))) -> 0 | H44: 4 | I44: =K44-M44 -> 0 | J44: =IF(K44=0,"",I45) ->  | K44: =IF(K37+M37=0,0,IF(SUM(K37:K43)>SUM(M37:M43),0,SUM(M37:M43)-SUM(K37:K43))) -> 0 | L44: =IF(M44=0,"",I45) ->  | M44: =IF(K37+M37=0,0,IF(SUM(M37:M43)>SUM(K37:K43),0,SUM(K37:K43)-SUM(M37:M43))) -> 0 | N44: 6 | O44: =Q44-S44 -> 0 | P44: =IF(Q44=0,"",O45) ->  | Q44: =IF(Q37+S37=0,0,IF(SUM(Q37:Q43)>SUM(S37:S43),0,SUM(S37:S43)-SUM(Q37:Q43))) -> 0 | R44: =IF(S44=0,"",O45) ->  | S44: =IF(Q37+S37=0,0,IF(SUM(S37:S43)>SUM(Q37:Q43),0,SUM(Q37:Q43)-SUM(S37:S43))) -> 0 | T44: 2 | U44: =W44-Y44 -> 70200 | V44: =IF(W44=0,"",U45) -> v/R. | W44: =IF(W37+Y37=0,0,IF(SUM(W37:W43)>SUM(Y37:Y43),0,SUM(Y37:Y43)-SUM(W37:W43))) -> 70200 | X44: =IF(Y44=0,"",U45) ->  | Y44: =IF(W37+Y37=0,0,IF(SUM(Y37:Y43)>SUM(W37:W43),0,SUM(W37:W43)-SUM(Y37:Y43))) -> 0 | AA44: 1 | AB44: =AD44-AF44 -> -43400 | AC44: =IF(AD44=0,"",AB45) ->  | AD44: =IF(AD37+AF37=0,0,IF(SUM(AD37:AD43)>SUM(AF37:AF43),0,SUM(AF37:AF43)-SUM(AD37:AD43))) -> 0 | AE44: =IF(AF44=0,"",AB45) -> v/R. | AF44: =IF(AD37+AF37=0,0,IF(SUM(AF37:AF43)>SUM(AD37:AD43),0,SUM(AD37:AD43)-SUM(AF37:AF43))) -> 43400 | AH44: =AJ44-AL44 -> 0 | AI44: =IF(AJ44=0,"",AH45) ->  | AJ44: =IF(AJ37+AL37=0,0,IF(SUM(AJ37:AJ43)>SUM(AL37:AL43),0,SUM(AL37:AL43)-SUM(AJ37:AJ43))) -> 0 | AK44: =IF(AL44=0,"",AH45) ->  | AL44: =IF(AJ37+AL37=0,0,IF(SUM(AL37:AL43)>SUM(AJ37:AJ43),0,SUM(AJ37:AJ43)-SUM(AL37:AL43))) -> 0 | AN44: =AP44-AR44 -> 0 | AO44: =IF(AP44=0,"",AN45) ->  | AP44: =IF(AP37+AR37=0,0,IF(SUM(AP37:AP43)>SUM(AR37:AR43),0,SUM(AR37:AR43)-SUM(AP37:AP43))) -> 0 | AQ44: =IF(AR44=0,"",AN45) ->  | AR44: =IF(AP37+AR37=0,0,IF(SUM(AR37:AR43)>SUM(AP37:AP43),0,SUM(AP37:AP43)-SUM(AR37:AR43))) -> 0 | AT44: =AV44-AX44 -> 0 | AU44: =IF(AV44=0,"",AT45) ->  | AV44: =IF(AV37+AX37=0,0,IF(SUM(AV37:AV43)>SUM(AX37:AX43),0,SUM(AX37:AX43)-SUM(AV37:AV43))) -> 0 | AW44: =IF(AX44=0,"",AT45) ->  | AX44: =IF(AV37+AX37=0,0,IF(SUM(AX37:AX43)>SUM(AV37:AV43),0,SUM(AV37:AV43)-SUM(AX37:AX43))) -> 0 | BB44: AM55 | BC44: 1 | BD44: =AM55 -> 0 | BE44: 0 | BF44: =AO47 ->  | BH44: =AN55 -> 0 | BJ44: 113600
C45: =IF(B44="","spb",IF(B44>40,$E$110,$E$111)) -> spb | E45: =IF(E37+G37=0,"",SUM(E37:E44)) -> 75000 | G45: =IF(E37+G37=0,"",SUM(G37:G44)) -> 75000 | I45: =IF(H44="","spb",IF(H44>40,$E$110,$E$111)) -> v/R. | K45: =IF(K37+M37=0,"",SUM(K37:K44)) -> 2500 | M45: =IF(K37+M37=0,"",SUM(M37:M44)) -> 2500 | O45: =IF(N44="","spb",IF(N44>40,$E$110,$E$111)) -> v/R. | Q45: =IF(Q37+S37=0,"",SUM(Q37:Q44)) -> 1500 | S45: =IF(Q37+S37=0,"",SUM(S37:S44)) -> 1500 | U45: =IF(T44="","spb",IF(T44>40,$E$110,$E$111)) -> v/R. | W45: =IF(W37+Y37=0,"",SUM(W37:W44)) -> 74200 | Y45: =IF(W37+Y37=0,"",SUM(Y37:Y44)) -> 74200 | AB45: =IF(AA44="","spb",IF(AA44>40,$E$110,$E$111)) -> v/R. | AD45: =IF(AD37+AF37=0,"",SUM(AD37:AD44)) -> 51000 | AF45: =IF(AD37+AF37=0,"",SUM(AF37:AF44)) -> 51000 | AH45: =IF(AG44="","spb",IF(AG44>40,$E$110,$E$111)) -> spb | AJ45: =IF(AJ37+AL37=0,"",SUM(AJ37:AJ44)) ->  | AL45: =IF(AJ37+AL37=0,"",SUM(AL37:AL44)) ->  | AN45: =IF(AM44="","spb",IF(AM44>40,$E$110,$E$111)) -> spb | AP45: =IF(AP37+AR37=0,"",SUM(AP37:AP44)) ->  | AR45: =IF(AP37+AR37=0,"",SUM(AR37:AR44)) ->  | AT45: =IF(AS44="","spb",IF(AS44>40,$E$110,$E$111)) -> spb | AV45: =IF(AV37+AX37=0,"",SUM(AV37:AV44)) ->  | AX45: =IF(AV37+AX37=0,"",SUM(AX37:AX44)) ->  | BB45: AS55 | BC45: 1 | BD45: =AS55 -> 0 | BE45: 0 | BF45: =AU47 ->  | BH45: =AT55 -> 0 | BJ45: 408400
D46: =IF(B47="","",VLOOKUP(B47,Plancompta,3)) ->  | G46: =IF(B47="","",VLOOKUP(B47,Plancompta,4)) ->  | J46: =IF(H47="","",VLOOKUP(H47,Plancompta,3)) ->  | M46: =IF(H47="","",VLOOKUP(H47,Plancompta,4)) ->  | P46: =IF(N47="","",VLOOKUP(N47,Plancompta,3)) ->  | S46: =IF(N47="","",VLOOKUP(N47,Plancompta,4)) ->  | V46: =IF(T47="","",VLOOKUP(T47,Plancompta,3)) ->  | Y46: =IF(T47="","",VLOOKUP(T47,Plancompta,4)) ->  | AC46: =IF(AA47="","",VLOOKUP(AA47,Plancompta,3)) ->  | AF46: =IF(AA47="","",VLOOKUP(AA47,Plancompta,4)) ->  | AI46: =IF(AG47="","",VLOOKUP(AG47,Plancompta,3)) ->  | AL46: =IF(AG47="","",VLOOKUP(AG47,Plancompta,4)) ->  | AO46: =IF(AM47="","",VLOOKUP(AM47,Plancompta,3)) ->  | AR46: =IF(AM47="","",VLOOKUP(AM47,Plancompta,4)) ->  | AU46: =IF(AS47="","",VLOOKUP(AS47,Plancompta,3)) ->  | AX46: =IF(AS47="","",VLOOKUP(AS47,Plancompta,4)) ->  | BB46: B66 | BC46: 1 | BD46: =B66 -> 0 | BE46: 0 | BF46: =D58 ->  | BH46: =C66 -> 0
D47: =IF(B47="","",B47 & " " & VLOOKUP(B47,Plancompta,2)) ->  | J47: =IF(H47="","",H47 & " " & VLOOKUP(H47,Plancompta,2)) ->  | P47: =IF(N47="","",N47 & " " & VLOOKUP(N47,Plancompta,2)) ->  | V47: =IF(T47="","",T47 & " " & VLOOKUP(T47,Plancompta,2)) ->  | AC47: =IF(AA47="","",AA47 & " " & VLOOKUP(AA47,Plancompta,2)) ->  | AI47: =IF(AG47="","",AG47 & " " & VLOOKUP(AG47,Plancompta,2)) ->  | AO47: =IF(AM47="","",AM47 & " " & VLOOKUP(AM47,Plancompta,2)) ->  | AU47: =IF(AS47="","",AS47 & " " & VLOOKUP(AS47,Plancompta,2)) ->  | BB47: H66 | BC47: 1 | BD47: =H66 -> 0 | BE47: 0 | BF47: =J58 ->  | BH47: =I66 -> 0 | BJ47: 0
BB48: N66 | BC48: 1 | BD48: =N66 -> 0 | BE48: 0 | BF48: =P58 ->  | BH48: =O66 -> 0 | BJ48: 0
BB49: T66 | BC49: 1 | BD49: =T66 -> 0 | BE49: 0 | BF49: =V58 ->  | BH49: =U66 -> 0 | BJ49: 0
BB50: AA66 | BC50: 1 | BD50: =AA66 -> 0 | BE50: 0 | BF50: =AC58 ->  | BH50: =AB66 -> 0 | BJ50: 0
BB51: AG66 | BC51: 1 | BD51: =AG66 -> 0 | BE51: 0 | BF51: =AI58 ->  | BH51: =AH66 -> 0 | BJ51: 0 | BK51: =IF(BJ51=0,1,0) -> 1
BB52: AM66 | BC52: 1 | BD52: =AM66 -> 0 | BE52: 0 | BF52: =AO58 ->  | BH52: =AN66 -> 0 | BJ52: 0 | BK52: =IF(BJ52=0,1,0) -> 1
BB53: AS66 | BE53: 0 | BF53: =AU58 ->  | BH53: =AT66 -> 0 | BJ53: 0 | BK53: =IF(BJ53=0,1,0) -> 1
BD54: 1 | BJ54: 0 | BK54: =IF(BJ54=0,1,0) -> 1
C55: =E55-G55 -> 0 | D55: =IF(E55=0,"",C56) ->  | E55: =IF(E48+G48=0,0,IF(SUM(E48:E54)>SUM(G48:G54),0,SUM(G48:G54)-SUM(E48:E54))) -> 0 | F55: =IF(G55=0,"",C56) ->  | G55: =IF(E48+G48=0,0,IF(SUM(G48:G54)>SUM(E48:E54),0,SUM(E48:E54)-SUM(G48:G54))) -> 0 | I55: =K55-M55 -> 0 | J55: =IF(K55=0,"",I56) ->  | K55: =IF(K48+M48=0,0,IF(SUM(K48:K54)>SUM(M48:M54),0,SUM(M48:M54)-SUM(K48:K54))) -> 0 | L55: =IF(M55=0,"",I56) ->  | M55: =IF(K48+M48=0,0,IF(SUM(M48:M54)>SUM(K48:K54),0,SUM(K48:K54)-SUM(M48:M54))) -> 0 | O55: =Q55-S55 -> 0 | P55: =IF(Q55=0,"",O56) ->  | Q55: =IF(Q48+S48=0,0,IF(SUM(Q48:Q54)>SUM(S48:S54),0,SUM(S48:S54)-SUM(Q48:Q54))) -> 0 | R55: =IF(S55=0,"",O56) ->  | S55: =IF(Q48+S48=0,0,IF(SUM(S48:S54)>SUM(Q48:Q54),0,SUM(Q48:Q54)-SUM(S48:S54))) -> 0 | U55: =W55-Y55 -> 0 | V55: =IF(W55=0,"",U56) ->  | W55: =IF(W48+Y48=0,0,IF(SUM(W48:W54)>SUM(Y48:Y54),0,SUM(Y48:Y54)-SUM(W48:W54))) -> 0 | X55: =IF(Y55=0,"",U56) ->  | Y55: =IF(W48+Y48=0,0,IF(SUM(Y48:Y54)>SUM(W48:W54),0,SUM(W48:W54)-SUM(Y48:Y54))) -> 0 | AB55: =AD55-AF55 -> 0 | AC55: =IF(AD55=0,"",AB56) ->  | AD55: =IF(AD48+AF48=0,0,IF(SUM(AD48:AD54)>SUM(AF48:AF54),0,SUM(AF48:AF54)-SUM(AD48:AD54))) -> 0 | AE55: =IF(AF55=0,"",AB56) ->  | AF55: =IF(AD48+AF48=0,0,IF(SUM(AF48:AF54)>SUM(AD48:AD54),0,SUM(AD48:AD54)-SUM(AF48:AF54))) -> 0 | AH55: =AJ55-AL55 -> 0 | AI55: =IF(AJ55=0,"",AH56) ->  | AJ55: =IF(AJ48+AL48=0,0,IF(SUM(AJ48:AJ54)>SUM(AL48:AL54),0,SUM(AL48:AL54)-SUM(AJ48:AJ54))) -> 0 | AK55: =IF(AL55=0,"",AH56) ->  | AL55: =IF(AJ48+AL48=0,0,IF(SUM(AL48:AL54)>SUM(AJ48:AJ54),0,SUM(AJ48:AJ54)-SUM(AL48:AL54))) -> 0 | AN55: =AP55-AR55 -> 0 | AO55: =IF(AP55=0,"",AN56) ->  | AP55: =IF(AP48+AR48=0,0,IF(SUM(AP48:AP54)>SUM(AR48:AR54),0,SUM(AR48:AR54)-SUM(AP48:AP54))) -> 0 | AQ55: =IF(AR55=0,"",AN56) ->  | AR55: =IF(AP48+AR48=0,0,IF(SUM(AR48:AR54)>SUM(AP48:AP54),0,SUM(AP48:AP54)-SUM(AR48:AR54))) -> 0 | AT55: =AV55-AX55 -> 0 | AU55: =IF(AV55=0,"",AT56) ->  | AV55: =IF(AV48+AX48=0,0,IF(SUM(AV48:AV54)>SUM(AX48:AX54),0,SUM(AX48:AX54)-SUM(AV48:AV54))) -> 0 | AW55: =IF(AX55=0,"",AT56) ->  | AX55: =IF(AV48+AX48=0,0,IF(SUM(AX48:AX54)>SUM(AV48:AV54),0,SUM(AV48:AV54)-SUM(AX48:AX54))) -> 0 | BD55: 2 | BJ55: 0
C56: =IF(B55="","spb",IF(B55>40,$E$110,$E$111)) -> spb | E56: =IF(E48+G48=0,"",SUM(E48:E55)) ->  | G56: =IF(E48+G48=0,"",SUM(G48:G55)) ->  | I56: =IF(H55="","spb",IF(H55>40,$E$110,$E$111)) -> spb | K56: =IF(K48+M48=0,"",SUM(K48:K55)) ->  | M56: =IF(K48+M48=0,"",SUM(M48:M55)) ->  | O56: =IF(N55="","spb",IF(N55>40,$E$110,$E$111)) -> spb | Q56: =IF(Q48+S48=0,"",SUM(Q48:Q55)) ->  | S56: =IF(Q48+S48=0,"",SUM(S48:S55)) ->  | U56: =IF(T55="","spb",IF(T55>40,$E$110,$E$111)) -> spb | W56: =IF(W48+Y48=0,"",SUM(W48:W55)) ->  | Y56: =IF(W48+Y48=0,"",SUM(Y48:Y55)) ->  | AB56: =IF(AA55="","spb",IF(AA55>40,$E$110,$E$111)) -> spb | AD56: =IF(AD48+AF48=0,"",SUM(AD48:AD55)) ->  | AF56: =IF(AD48+AF48=0,"",SUM(AF48:AF55)) ->  | AH56: =IF(AG55="","spb",IF(AG55>40,$E$110,$E$111)) -> spb | AJ56: =IF(AJ48+AL48=0,"",SUM(AJ48:AJ55)) ->  | AL56: =IF(AJ48+AL48=0,"",SUM(AL48:AL55)) ->  | AN56: =IF(AM55="","spb",IF(AM55>40,$E$110,$E$111)) -> spb | AP56: =IF(AP48+AR48=0,"",SUM(AP48:AP55)) ->  | AR56: =IF(AP48+AR48=0,"",SUM(AR48:AR55)) ->  | AT56: =IF(AS55="","spb",IF(AS55>40,$E$110,$E$111)) -> spb | AV56: =IF(AV48+AX48=0,"",SUM(AV48:AV55)) ->  | AX56: =IF(AV48+AX48=0,"",SUM(AX48:AX55)) ->  | BD56: 3 | BJ56: 0
D57: =IF(B58="","",VLOOKUP(B58,Plancompta,3)) ->  | G57: =IF(B58="","",VLOOKUP(B58,Plancompta,4)) ->  | J57: =IF(H58="","",VLOOKUP(H58,Plancompta,3)) ->  | M57: =IF(H58="","",VLOOKUP(H58,Plancompta,4)) ->  | P57: =IF(N58="","",VLOOKUP(N58,Plancompta,3)) ->  | S57: =IF(N58="","",VLOOKUP(N58,Plancompta,4)) ->  | V57: =IF(T58="","",VLOOKUP(T58,Plancompta,3)) ->  | Y57: =IF(T58="","",VLOOKUP(T58,Plancompta,4)) ->  | AC57: =IF(AA58="","",VLOOKUP(AA58,Plancompta,3)) ->  | AF57: =IF(AA58="","",VLOOKUP(AA58,Plancompta,4)) ->  | AI57: =IF(AG58="","",VLOOKUP(AG58,Plancompta,3)) ->  | AL57: =IF(AG58="","",VLOOKUP(AG58,Plancompta,4)) ->  | AO57: =IF(AM58="","",VLOOKUP(AM58,Plancompta,3)) ->  | AR57: =IF(AM58="","",VLOOKUP(AM58,Plancompta,4)) ->  | AU57: =IF(AS58="","",VLOOKUP(AS58,Plancompta,3)) ->  | AX57: =IF(AS58="","",VLOOKUP(AS58,Plancompta,4)) ->  | BD57: 4
D58: =IF(B58="","",B58 & " " & VLOOKUP(B58,Plancompta,2)) ->  | J58: =IF(H58="","",H58 & " " & VLOOKUP(H58,Plancompta,2)) ->  | P58: =IF(N58="","",N58 & " " & VLOOKUP(N58,Plancompta,2)) ->  | V58: =IF(T58="","",T58 & " " & VLOOKUP(T58,Plancompta,2)) ->  | AC58: =IF(AA58="","",AA58 & " " & VLOOKUP(AA58,Plancompta,2)) ->  | AI58: =IF(AG58="","",AG58 & " " & VLOOKUP(AG58,Plancompta,2)) ->  | AO58: =IF(AM58="","",AM58 & " " & VLOOKUP(AM58,Plancompta,2)) ->  | AU58: =IF(AS58="","",AS58 & " " & VLOOKUP(AS58,Plancompta,2)) ->  | BD58: 5 | BJ58: 0
BD59: 6 | BJ59: 0
BD60: 7 | BJ60: 0
BD61: 8 | BJ61: 0
BD62: 9 | BJ62: 0 | BK62: =IF(BJ62=0,1,0) -> 1
BD63: 10 | BJ63: 0 | BK63: =IF(BJ63=0,1,0) -> 1
BD64: 11 | BJ64: 0 | BK64: =IF(BJ64=0,1,0) -> 1
BD65: 12 | BJ65: 0 | BK65: =IF(BJ65=0,1,0) -> 1
C66: =E66-G66 -> 0 | D66: =IF(E66=0,"",C67) ->  | E66: =IF(E59+G59=0,0,IF(SUM(E59:E65)>SUM(G59:G65),0,SUM(G59:G65)-SUM(E59:E65))) -> 0 | F66: =IF(G66=0,"",C67) ->  | G66: =IF(E59+G59=0,0,IF(SUM(G59:G65)>SUM(E59:E65),0,SUM(E59:E65)-SUM(G59:G65))) -> 0 | I66: =K66-M66 -> 0 | J66: =IF(K66=0,"",I67) ->  | K66: =IF(K59+M59=0,0,IF(SUM(K59:K65)>SUM(M59:M65),0,SUM(M59:M65)-SUM(K59:K65))) -> 0 | L66: =IF(M66=0,"",I67) ->  | M66: =IF(K59+M59=0,0,IF(SUM(M59:M65)>SUM(K59:K65),0,SUM(K59:K65)-SUM(M59:M65))) -> 0 | O66: =Q66-S66 -> 0 | P66: =IF(Q66=0,"",O67) ->  | Q66: =IF(Q59+S59=0,0,IF(SUM(Q59:Q65)>SUM(S59:S65),0,SUM(S59:S65)-SUM(Q59:Q65))) -> 0 | R66: =IF(S66=0,"",O67) ->  | S66: =IF(Q59+S59=0,0,IF(SUM(S59:S65)>SUM(Q59:Q65),0,SUM(Q59:Q65)-SUM(S59:S65))) -> 0 | U66: =W66-Y66 -> 0 | V66: =IF(W66=0,"",U67) ->  | W66: =IF(W59+Y59=0,0,IF(SUM(W59:W65)>SUM(Y59:Y65),0,SUM(Y59:Y65)-SUM(W59:W65))) -> 0 | X66: =IF(Y66=0,"",U67) ->  | Y66: =IF(W59+Y59=0,0,IF(SUM(Y59:Y65)>SUM(W59:W65),0,SUM(W59:W65)-SUM(Y59:Y65))) -> 0 | AB66: =AD66-AF66 -> 0 | AC66: =IF(AD66=0,"",AB67) ->  | AD66: =IF(AD59+AF59=0,0,IF(SUM(AD59:AD65)>SUM(AF59:AF65),0,SUM(AF59:AF65)-SUM(AD59:AD65))) -> 0 | AE66: =IF(AF66=0,"",AB67) ->  | AF66: =IF(AD59+AF59=0,0,IF(SUM(AF59:AF65)>SUM(AD59:AD65),0,SUM(AD59:AD65)-SUM(AF59:AF65))) -> 0 | AH66: =AJ66-AL66 -> 0 | AI66: =IF(AJ66=0,"",AH67) ->  | AJ66: =IF(AJ59+AL59=0,0,IF(SUM(AJ59:AJ65)>SUM(AL59:AL65),0,SUM(AL59:AL65)-SUM(AJ59:AJ65))) -> 0 | AK66: =IF(AL66=0,"",AH67) ->  | AL66: =IF(AJ59+AL59=0,0,IF(SUM(AL59:AL65)>SUM(AJ59:AJ65),0,SUM(AJ59:AJ65)-SUM(AL59:AL65))) -> 0 | AN66: =AP66-AR66 -> 0 | AO66: =IF(AP66=0,"",AN67) ->  | AP66: =IF(AP59+AR59=0,0,IF(SUM(AP59:AP65)>SUM(AR59:AR65),0,SUM(AR59:AR65)-SUM(AP59:AP65))) -> 0 | AQ66: =IF(AR66=0,"",AN67) ->  | AR66: =IF(AP59+AR59=0,0,IF(SUM(AR59:AR65)>SUM(AP59:AP65),0,SUM(AP59:AP65)-SUM(AR59:AR65))) -> 0 | AT66: =AV66-AX66 -> 0 | AU66: =IF(AV66=0,"",AT67) ->  | AV66: =IF(AV59+AX59=0,0,IF(SUM(AV59:AV65)>SUM(AX59:AX65),0,SUM(AX59:AX65)-SUM(AV59:AV65))) -> 0 | AW66: =IF(AX66=0,"",AT67) ->  | AX66: =IF(AV59+AX59=0,0,IF(SUM(AX59:AX65)>SUM(AV59:AV65),0,SUM(AV59:AV65)-SUM(AX59:AX65))) -> 0 | BD66: 13 | BJ66: 0
C67: =IF(B66="","spb",IF(B66>40,$E$110,$E$111)) -> spb | E67: =IF(E59+G59=0,"",SUM(E59:E66)) ->  | G67: =IF(E59+G59=0,"",SUM(G59:G66)) ->  | I67: =IF(H66="","spb",IF(H66>40,$E$110,$E$111)) -> spb | K67: =IF(K59+M59=0,"",SUM(K59:K66)) ->  | M67: =IF(K59+M59=0,"",SUM(M59:M66)) ->  | O67: =IF(N66="","spb",IF(N66>40,$E$110,$E$111)) -> spb | Q67: =IF(Q59+S59=0,"",SUM(Q59:Q66)) ->  | S67: =IF(Q59+S59=0,"",SUM(S59:S66)) ->  | U67: =IF(T66="","spb",IF(T66>40,$E$110,$E$111)) -> spb | W67: =IF(W59+Y59=0,"",SUM(W59:W66)) ->  | Y67: =IF(W59+Y59=0,"",SUM(Y59:Y66)) ->  | AB67: =IF(AA66="","spb",IF(AA66>40,$E$110,$E$111)) -> spb | AD67: =IF(AD59+AF59=0,"",SUM(AD59:AD66)) ->  | AF67: =IF(AD59+AF59=0,"",SUM(AF59:AF66)) ->  | AH67: =IF(AG66="","spb",IF(AG66>40,$E$110,$E$111)) -> spb | AJ67: =IF(AJ59+AL59=0,"",SUM(AJ59:AJ66)) ->  | AL67: =IF(AJ59+AL59=0,"",SUM(AL59:AL66)) ->  | AN67: =IF(AM66="","spb",IF(AM66>40,$E$110,$E$111)) -> spb | AP67: =IF(AP59+AR59=0,"",SUM(AP59:AP66)) ->  | AR67: =IF(AP59+AR59=0,"",SUM(AR59:AR66)) ->  | AT67: =IF(AS66="","spb",IF(AS66>40,$E$110,$E$111)) -> spb | AV67: =IF(AV59+AX59=0,"",SUM(AV59:AV66)) ->  | AX67: =IF(AV59+AX59=0,"",SUM(AX59:AX66)) ->  | BD67: 14 | BJ67: 0
BD68: 15
BD69: 16
B70: 26 | D70: =IF(B70=0,"",VLOOKUP(B70,Libellés!B12:J39,2)) -> Toutes les écritures "rouges" sont comptabilisées | BB70: Ges col. | BD70: 17
BD71: 18
BD72: 19
D73: 9000 Résultat | N73: B I L A N final | BB73: 0 | BD73: 20
B74: 1 | D74: =IF(E74=0,"",VLOOKUP(B74,table,$BI$3,FALSE)) -> 42 C | E74: =VLOOKUP(B74,table,2,FALSE) -> 43400 | F74: =IF(G74=0,"",VLOOKUP(H74,table,$BI$3,FALSE)) -> 32 V | G74: =VLOOKUP(H74,table,2,FALSE) -> 70200 | H74: 2 | N74: Actif | T74: Passif | BB74: TRUE | BD74: 21
B75: 3 | D75: =IF(E75=0,"",VLOOKUP(B75,table,$BI$3,FALSE)) ->  | E75: =VLOOKUP(B75,table,2,FALSE) -> 0 | F75: =IF(G75=0,"",VLOOKUP(H75,table,$BI$3,FALSE)) ->  | G75: =VLOOKUP(H75,table,2,FALSE) -> 0 | H75: 4 | M75: 41 | N75: =IF(S75=0,"",VLOOKUP(M75,table,3,FALSE)) -> 1000 Trésorerie | S75: =VLOOKUP(M75,table,2,FALSE) -> 12400 | T75: =IF(Y75=0,"",VLOOKUP(Z75,table,3,FALSE)) -> 2000 Fournisseurs | Y75: =VLOOKUP(Z75,table,2,FALSE) -> 29000 | Z75: 42 | BB75: TRUE | BD75: 22
B76: 5 | D76: =IF(E76=0,"",VLOOKUP(B76,table,$BI$3,FALSE)) ->  | E76: =VLOOKUP(B76,table,2,FALSE) -> 0 | F76: =IF(G76=0,"",VLOOKUP(H76,table,$BI$3,FALSE)) ->  | G76: =VLOOKUP(H76,table,2,FALSE) -> 0 | H76: 6 | M76: 43 | S76: 0 | Y76: 0 | Z76: 44 | BB76: TRUE | BD76: 23
D77: =IF(E77=0,"","BB") -> BB | E77: =IF(SUM(E73:E76)>SUM(G73:G76),0,SUM(G73:G76)-SUM(E73:E76)) -> 26800 | F77: =IF(G77=0,"","PB") ->  | G77: =IF(SUM(G73:G76)>SUM(E73:E76),0,SUM(E73:E76)-SUM(G73:G76)) -> 0 | M77: 45 | N77: 1100 Créances s/déb. | S77: 40700 | T77: 2800 Capital | Y77: 52000 | Z77: 46 | BB77: TRUE | BD77: 24 | BK77: =IF(BJ77=0,1,0) -> 1
E78: =SUM(E73:E77) -> 70200 | G78: =SUM(G73:G77) -> 70200 | M78: 47 | N78: 1200 Stock | S78: 42000 | Y78: 0 | Z78: 48 | BB78: TRUE | BD78: 25 | BK78: 1
D79: =F77 ->  | E79: =G77 -> 0 | F79: =D77 -> BB | G79: =E77 -> 26800 | M79: 49 | S79: 0 | Y79: 0 | Z79: 50 | BB79: TRUE | BD79: 26 | BK79: 1
B80: 13 | D80: =IF(E80=0,"",VLOOKUP(B80,table,$BI$3,FALSE)) ->  | E80: =VLOOKUP(B80,table,2,FALSE) -> 0 | F80: =IF(G80=0,"",VLOOKUP(H80,table,$BI$3,FALSE)) ->  | G80: =VLOOKUP(H80,table,2,FALSE) -> 0 | H80: 14 | M80: 51 | S80: 0 | Y80: 0 | Z80: 52 | BB80: TRUE | BD80: 27 | BK80: 1
B81: 15 | D81: 5200 | E81: 6000 | G81: 0 | H81: 16 | M81: 53 | N81: =IF(S81=0,"",VLOOKUP(M81,table,3,FALSE)) ->  | S81: 0 | T81: =IF(Y81=0,"",VLOOKUP(Z81,table,3,FALSE)) ->  | Y81: 0 | Z81: 54 | BB81: TRUE | BD81: 28 | BK81: 1
B82: 17 | D82: 6000 | E82: 3000 | G82: 0 | H82: 18 | M82: 55 | S82: 0 | Y82: 0 | Z82: 56 | BD82: 29 | BK82: 1
B83: 19 | D83: 6280 | E83: 3300 | G83: 0 | H83: 20 | M83: 57 | S83: 0 | Y83: 0 | Z83: 58 | BD83: 30 | BK83: 1
B84: 21 | D84: 6500 | E84: 400 | G84: 0 | H84: 22 | M84: 59 | S84: 0 | Y84: 0 | Z84: 60 | BD84: 31 | BK84: 1
B85: 23 | E85: 0 | G85: 0 | H85: 24 | M85: 61 | S85: 0 | Y85: 0 | Z85: 62 | BD85: 32 | BK85: 1
B86: 25 | E86: 0 | G86: 0 | H86: 26 | M86: 63 | S86: 0 | Y86: 0 | Z86: 64 | BD86: 33 | BK86: 1
B87: 27 | E87: 0 | G87: 0 | H87: 28 | M87: 65 | S87: 0 | Y87: 0 | Z87: 66 | BD87: 34 | BK87: 1
B88: 29 | E88: 0 | G88: 0 | H88: 30 | M88: 67 | S88: 0 | Y88: 0 | Z88: 68 | BD88: 35
C89: =E89-G89 -> 14100 | D89: =IF(E89=0,"","BN") -> BN | E89: =IF(SUM(E79:E88)>SUM(G79:G88),0,SUM(G79:G88)-SUM(E79:E88)) -> 14100 | F89: =IF(G89=0,"","PN") ->  | G89: =IF(SUM(G79:G88)>SUM(E79:E88),0,SUM(E79:E88)-SUM(G79:G88)) -> 0 | N89: =IF(S89=0,"","spb") ->  | S89: =IF(SUM(S75:S88)>=SUM(Y75:Y88),0,SUM(Y75:Y88)-SUM(S75:S88)) -> 0 | T89: =IF(Y89=0,"","spb") -> spb | Y89: =IF(SUM(Y75:Y88)>=SUM(S75:S88),0,SUM(S75:S88)-SUM(Y75:Y88)) -> 14100 | BD89: 36
E90: =SUM(E79:E89) -> 26800 | G90: =SUM(G79:G89) -> 26800 | R90: =SUM(S75:S89) -> 95100 | X90: =SUM(Y75:Y89) -> 95100 | BD90: 37
BD91: 38
BD92: 39
B93: Réglages du Grand-Livre | BD93: 40
E94: 100 | G94: 100 | K94: 100 | M94: 100 | Q94: 100 | S94: 100 | W94: 100 | Y94: 100 | AD94: 100 | AF94: 100 | AJ94: 100 | AL94: 100 | AP94: 100 | AR94: 100 | AV94: 100 | AX94: 100 | BD94: 41 | BF94: =AU82 -> 0 | BG94: =LEFT(BF94,4) -> 0 | BH94: =AT97 -> 0
BD95: 42
A96: =Accueil!D31 -> Version octobre 2014 | BD96: 43
BD97: 44
BD98: 45
BD99: 46
BD100: 47
BD101: 48
BD102: 49
B103: TRUE | D103: TRUE | E103: 2 | F103: =12.75+((E103-1)*0.75) -> 13.5 | K103: 0 | BD103: 50
B104: FALSE | D104: FALSE | E104: 11 | BD104: 51
B105: TRUE | D105: TRUE | E105: 115 | BD105: 52
B106: 1 | D106: TRUE | E106: 110 | BD106: 53
B107: FALSE | D107: TRUE | E107: 145 | BD107: 54
B108: TRUE | D108: FALSE | E108: non | BD108: 55
E109: 1 | BD109: 56
B110: 0 | E110: v/Bi | BD110: 57
E111: v/R. | BD111: 58
B112: TRUE | D112: 0 | E112: 0 | BD112: 59
B113: TRUE | D113: 0 | BD113: 60
B114: FALSE | BD114: 61
B115: TRUE | BD115: 62
B116: FALSE | BD116: 63
BD117: 64
B118: 2 | BD118: 65
B119: TRUE | BD119: 66
D120: 1 | BD120: 67
D121: TRUE | BD121: 68
B122: 0
B123: 0
D124: 1
D125: 0
D126: 0 | M126: =IF(N126>0,"PN","") ->  | N126: =$G$89 -> 0 | O126: =IF(P126>0,"BN","") -> 
D127: 1 | O127: Pri
D128: AC | E128: 5
J129: v/Ca
C130: =E130-G130 -> 0 | D130: =IF(E130=0,"",C131) ->  | E130: =IF(E123+G123=0,0,IF(SUM(E123:E129)>SUM(G123:G129),0,SUM(G123:G129)-SUM(E123:E129))) -> 0 | F130: =IF(G130=0,"",C131) ->  | G130: =IF(E123+G123=0,0,IF(SUM(G123:G129)>SUM(E123:E129),0,SUM(E123:E129)-SUM(G123:G129))) -> 0 | I130: =IF(J130>0,"BN","") -> BN | J130: Pri
D132: 9000 Résultat | P132: 9000 Résultat
B133: 1 | D133: =IF(E133=0,"",VLOOKUP(B133,table,$BI$3,FALSE)) -> 42 C | E133: =VLOOKUP(B133,table,2,FALSE) -> 43400 | F133: =IF(G133=0,"",VLOOKUP(H133,table,$BI$3,FALSE)) -> 32 V | G133: =VLOOKUP(H133,table,2,FALSE) -> 70200 | H133: 2 | N133: 1 | P133: =IF(Q133=0,"",VLOOKUP(N133,table,$BI$3,FALSE)) -> 42 C | Q133: =VLOOKUP(N133,table,2,FALSE) -> 43400 | R133: =IF(S133=0,"",VLOOKUP(T133,table,$BI$3,FALSE)) -> 32 V | S133: =VLOOKUP(T133,table,2,FALSE) -> 70200 | T133: 2
B134: 3 | E134: 0 | G134: 0 | H134: 4 | N134: 3 | Q134: =VLOOKUP(N134,table,2,FALSE) -> 0 | S134: =VLOOKUP(T134,table,2,FALSE) -> 0 | T134: 4
B135: 5 | E135: 0 | G135: 0 | H135: 6 | N135: 5 | Q135: 0 | S135: 0 | T135: 6
B136: 7 | E136: 0 | G136: 0 | H136: 8 | N136: 7 | Q136: 0 | S136: 0 | T136: 8
B137: 9 | E137: 0 | G137: 0 | H137: 10 | N137: 9 | Q137: 0 | S137: 0 | T137: 10
B138: 11 | E138: 0 | G138: 0 | H138: 12 | N138: 11 | Q138: 0 | S138: 0 | T138: 12
D139: =IF(E139=0,"","BB") -> BB | E139: =IF(SUM(E133:E138)>SUM(G133:G138),0,SUM(G133:G138)-SUM(E133:E138)) -> 26800 | F139: =IF(G139=0,"","PB") ->  | G139: =IF(SUM(G133:G138)>SUM(E133:E138),0,SUM(E133:E138)-SUM(G133:G138)) -> 0 | N139: 13 | Q139: 0 | S139: 0 | T139: 14
E140: =SUM(E133:E139) -> 70200 | G140: =SUM(G133:G139) -> 70200 | N140: 15 | P140: 5200 | Q140: 6000 | S140: 0 | T140: 16
D141: =F139 ->  | E141: =G139 -> 0 | F141: =D139 -> BB | G141: =E139 -> 26800 | N141: 17 | P141: 6000 | Q141: =VLOOKUP(N141,table,2,FALSE) -> 3000 | S141: =VLOOKUP(T141,table,2,FALSE) -> 0 | T141: 18
B142: 19 | D142: =IF(E142=0,"",VLOOKUP(B142,table,$BI$3,FALSE)) -> 6280 | E142: =VLOOKUP(B142,table,2,FALSE) -> 3300 | F142: =IF(G142=0,"",VLOOKUP(H142,table,$BI$3,FALSE)) ->  | G142: =VLOOKUP(H142,table,2,FALSE) -> 0 | H142: 20 | N142: 19 | P142: 6280 | Q142: 3300 | S142: 0 | T142: 20
B143: 21 | D143: 6500 | E143: 400 | G143: 0 | H143: 22 | N143: 21 | P143: 6500 | Q143: 400 | S143: 0 | T143: 22
B144: 23 | E144: 0 | G144: 0 | H144: 24 | N144: 23 | Q144: 0 | S144: 0 | T144: 24
B145: 25 | E145: 0 | G145: 0 | H145: 26 | N145: 25 | Q145: 0 | S145: 0 | T145: 26
B146: 27 | E146: 0 | G146: 0 | H146: 28 | N146: 27 | Q146: 0 | S146: 0 | T146: 28
B147: 29 | E147: 0 | G147: 0 | H147: 30 | N147: 29 | Q147: 0 | S147: 0 | T147: 30
C148: =E148-G148 -> 23100 | D148: =IF(E148=0,"","BN") -> BN | E148: =IF(SUM(E141:E147)>SUM(G141:G147),0,SUM(G141:G147)-SUM(E141:E147)) -> 23100 | F148: =IF(G148=0,"","PN") ->  | G148: =IF(SUM(G141:G147)>SUM(E141:E147),0,SUM(E141:E147)-SUM(G141:G147)) -> 0 | O148: =Q148-S148 -> 14100 | P148: =IF(Q148=0,"","BN") -> BN | Q148: =IF(SUM(Q133:Q147)>SUM(S133:S147),0,SUM(S133:S147)-SUM(Q133:Q147)) -> 14100 | R148: =IF(S148=0,"","PN") ->  | S148: =IF(SUM(S133:S147)>SUM(Q133:Q147),0,SUM(Q133:Q147)-SUM(S133:S147)) -> 0
E149: =SUM(E141:E148) -> 26800 | G149: =SUM(G141:G148) -> 26800 | Q149: =SUM(Q133:Q148) -> 70200 | S149: =SUM(S133:S148) -> 70200
D154: =IF(B154="","",B154 & " " & VLOOKUP(B154,Plancompta,2)) ->  | P154: =IF(N154="","",N154 & " " & VLOOKUP(N154,Plancompta,2)) -> 
O162: =Q162-S162 -> 0 | P162: =IF(Q162=0,"",O163) ->  | Q162: =IF(Q155+S155=0,0,IF(SUM(Q155:Q161)>SUM(S155:S161),0,SUM(S155:S161)-SUM(Q155:Q161))) -> 0 | R162: =IF(S162=0,"",O163) ->  | S162: =IF(Q155+S155=0,0,IF(SUM(S155:S161)>SUM(Q155:Q161),0,SUM(Q155:Q161)-SUM(S155:S161))) -> 0
O163: =IF(N162="","spb",IF(N162>40,$E$110,$E$111)) -> spb | Q163: =IF(Q155+S155=0,"",SUM(Q155:Q162)) ->  | S163: =IF(Q155+S155=0,"",SUM(S155:S162)) -> 
P164: =IF(N165="","",VLOOKUP(N165,Plancompta,3)) ->  | S164: =IF(N165="","",VLOOKUP(N165,Plancompta,4)) -> 
P165: =IF(N165="","",N165 & " " & VLOOKUP(N165,Plancompta,2)) -> 
C173: =E173-G173 -> 0 | D173: =IF(E173=0,"",C174) ->  | E173: =IF(E155+G155=0,0,IF(SUM(E155:E172)>SUM(G155:G172),0,SUM(G155:G172)-SUM(E155:E172))) -> 0 | F173: =IF(G173=0,"",C174) ->  | G173: =IF(E155+G155=0,0,IF(SUM(G155:G172)>SUM(E155:E172),0,SUM(E155:E172)-SUM(G155:G172))) -> 0 | O173: =Q173-S173 -> 0 | P173: =IF(Q173=0,"",O174) ->  | Q173: =IF(Q166+S166=0,0,IF(SUM(Q166:Q172)>SUM(S166:S172),0,SUM(S166:S172)-SUM(Q166:Q172))) -> 0 | R173: =IF(S173=0,"",O174) ->  | S173: =IF(Q166+S166=0,0,IF(SUM(S166:S172)>SUM(Q166:Q172),0,SUM(Q166:Q172)-SUM(S166:S172))) -> 0
C174: =IF(B173="","spb",IF(B173>40,$E$110,$E$111)) -> spb | E174: =IF(E155+G155=0,"",SUM(E155:E173)) ->  | G174: =IF(E155+G155=0,"",SUM(G155:G173)) ->  | O174: =IF(N173="","spb",IF(N173>40,$E$110,$E$111)) -> spb | Q174: =IF(Q166+S166=0,"",SUM(Q166:Q173)) ->  | S174: =IF(Q166+S166=0,"",SUM(S166:S173)) -> 
D179: 9000 Résultat
B180: 1 | D180: =IF(E180=0,"",VLOOKUP(B180,table,$BI$3,FALSE)) -> 42 C | E180: =VLOOKUP(B180,table,2,FALSE) -> 43400 | F180: =IF(G180=0,"",VLOOKUP(H180,table,$BI$3,FALSE)) -> 32 V | G180: =VLOOKUP(H180,table,2,FALSE) -> 70200 | H180: 2
B181: 3 | D181: =IF(E181=0,"",VLOOKUP(B181,table,$BI$3,FALSE)) ->  | E181: =VLOOKUP(B181,table,2,FALSE) -> 0 | F181: =IF(G181=0,"",VLOOKUP(H181,table,$BI$3,FALSE)) ->  | G181: =VLOOKUP(H181,table,2,FALSE) -> 0 | H181: 4
B182: 5 | D182: =IF(E182=0,"",VLOOKUP(B182,table,$BI$3,FALSE)) ->  | E182: =VLOOKUP(B182,table,2,FALSE) -> 0 | F182: =IF(G182=0,"",VLOOKUP(H182,table,$BI$3,FALSE)) ->  | G182: =VLOOKUP(H182,table,2,FALSE) -> 0 | H182: 6
D183: =IF(E183=0,"","BB") -> BB | E183: =IF(SUM(E179:E182)>SUM(G179:G182),0,SUM(G179:G182)-SUM(E179:E182)) -> 26800 | F183: =IF(G183=0,"","PB") ->  | G183: =IF(SUM(G179:G182)>SUM(E179:E182),0,SUM(E179:E182)-SUM(G179:G182)) -> 0
E184: =SUM(E179:E183) -> 70200 | G184: =SUM(G179:G183) -> 70200
D185: =F183 ->  | E185: =G183 -> 0 | F185: =D183 -> BB | G185: =E183 -> 26800
B186: 13 | D186: =IF(E186=0,"",VLOOKUP(B186,table,$BI$3,FALSE)) ->  | E186: =VLOOKUP(B186,table,2,FALSE) -> 0 | F186: =IF(G186=0,"",VLOOKUP(H186,table,$BI$3,FALSE)) ->  | G186: =VLOOKUP(H186,table,2,FALSE) -> 0 | H186: 14
B187: 15 | D187: 5200 | E187: 6000 | G187: 0 | H187: 16
B188: 17 | D188: 6000 | E188: 3000 | G188: 0 | H188: 18
B189: 19 | D189: 6280 | E189: 3300 | G189: 0 | H189: 20
B190: 21 | D190: 6500 | E190: 400 | G190: 0 | H190: 22
B191: 23 | E191: 0 | G191: 0 | H191: 24
B192: 25 | E192: 0 | G192: 0 | H192: 26
B193: 27 | E193: 0 | G193: 0 | H193: 28
B194: 29 | E194: 0 | G194: 0 | H194: 30
C195: =E195-G195 -> 14100 | D195: =IF(E195=0,"","BN") -> BN | E195: =IF(SUM(E185:E194)>SUM(G185:G194),0,SUM(G185:G194)-SUM(E185:E194)) -> 14100 | F195: =IF(G195=0,"","PN") ->  | G195: =IF(SUM(G185:G194)>SUM(E185:E194),0,SUM(E185:E194)-SUM(G185:G194)) -> 0
E196: =SUM(E185:E195) -> 26800 | G196: =SUM(G185:G195) -> 26800
B203: 10 | D203: 10 | E203: 100 | F203: 10 | G203: 100 | H203: 10 | J203: 10 | K203: 100 | L203: 10 | M203: 100 | N203: 10 | P203: 10 | Q203: 100 | R203: 10 | S203: 100 | T203: 10 | V203: 10 | W203: 100 | X203: 10 | Y203: 100 | Z203: 10 | AA203: 10 | AC203: 10 | AD203: 100 | AE203: 10 | AF203: 100 | AG203: 10 | AI203: 10 | AJ203: 100 | AK203: 10 | AL203: 100 | AM203: 10 | AO203: 10 | AP203: 100 | AQ203: 10 | AR203: 100 | AS203: 10 | AU203: 10 | AV203: 100 | AW203: 10 | AX203: 100
R215: =IF(S215>0,"Pri","") ->  | S215: 0
G221: 0

Sheet Libellés
B1: Libellés
B3: Les libellés donnés ci-dessous correspondent aux boutons. Ils sont affichés automatiquement
B5: lorsqu'un bouton est activé.
B11: Bouton | C11: Libellé
B12: 0 | K12: Ce libellé ne s'affiche pas
B13: 1 | C13: Achats de marchandises au comptant CHF 15'000.-.
B14: 2 | C14: Achats de marchandises à crédit CHF 35'000.-.
B15: 3 | C15: Frais de transport sur marchandises achetées. Payé cash CHF 3'000.-.
B16: 4 | C16: Retours aux fournisseurs CHF 2'000.-.
B17: 5 | C17: Ventes au comptant net CHF 15'000.-.
B18: 6 | C18: Ventes à crédit CHF 60'000.-.
B19: 7 | C19: Frais d'expédition à notre charge. Payé CHF 2'500.-.
B20: 8 | C20: Commission payée à un tiers CHF 500.-.
B21: 9 | C21: Retours de marchandises d'un client CHF 800.-.
B22: 10 | C22: Paiement d'une facture à un fournisseur brut 12'000.-, net 11'400.-.
B23: 11 | C23: Escompte obtenu sur la facture d'un fournisseur brut 12'000. net 11'400.-.
B24: 12 | C24: Versement d'un client net CHF 20'000.-.
B25: 13 | C25: Remise accordée à un client CHF 2'000.-.
B26: 14 | C26: Achats d'emballages (non facturés aux clients). Payé par poste CHF 800.-.
B27: 15 | C27: Loyers du magasin payé cash 3'000.-.
B28: 16 | C28: Perte due à un client insolvable CHF 1'500.-.
B29: 17 | C29: Achat de fournitures informatiques. Payé comptant CHF 400.-.
B30: 18 | C30: Ordre de virement postal pour les salaires CHF 6'000.-.
B31: 19 | C31: Inventaire final CHF 42'000.-.
B32: 20 | C32: Virements aux comptes de groupement
B33: 21
B34: 22
B35: 23
B36: 24 | C36: Virement du résultat
B37: 25 | C37: Variation de fortune (autofinancement)
B38: 26 | C38: Toutes les écritures "rouges" sont comptabilisées
C39: =COUNTA(C13:C35) -> 20

Sheet Plan comptable (hidden)
A1: La liste ci-dessous est modifiable. (Veuillez respecter la hiérarchie des no) | O1: Proposition de plan comptable (Le tableau ci-dessous n'est pas modifiable!)
G2: Allemand | I2: PME 2014 Version edupool.ch | K2: PME 2014 Version LEP | M2: PME 1997
B3: 32 | C3: Ventes de march. | D3: + | E3: - | G3: Kasse | I3: Caisse | K3: Caisse | M3: Trésorerie | O3: =B68 -> 2000 | P3: =C68 -> Fournisseurs | R3: =B136 -> 4000 | S3: =C136 -> Ch. de matériel | U3: =B115 -> 3000 | V3: Production | Y3: =B3 & " " & C3 -> 32 Ventes de march.
B4: 42 | C4: Charges de march. | D4: + | E4: - | G4: Postcheck-Konto | K4: Compte postal | M4: Poste | O4: =B69 -> 2010 | R4: =B137 -> 4200 | S4: Achats bruts | U4: =B116 -> 3200 | V4: =C116 -> Ventes brutes | Y4: =B4 & " " & C4 -> 42 Charges de march.
B5: 1000 | C5: Trésorerie | D5: + | E5: - | G5: Bank | I5: Banque | K5: Compte courant | M5: Banque | O5: =B70 -> 2030 | P5: Acomptes de tiers | R5: =B138 -> 4201 | U5: 3290 | Y5: 1000 Trésorerie | BL5: =B29 -> 1280 | BP5: =C29 -> Travaux en cours
B6: 1021 | D6: + | E6: - | I6: Poste | O6: =B71 -> 2050 | R6: =B139 -> 4202 | U6: 3293 | Y6: 1021
B7: 1040 | D7: + | E7: - | G7: Wechsel | I7: Effets à recevoir | M7: Effets à recevoir | O7: =B72 -> 2100 | P7: Dettes bancaires à ct | R7: =B140 -> 4270 | S7: Frais d'achats | U7: 3295 | Y7: 1040
B8: 1060 | C8: Titres à court terme | D8: + | E8: - | G8: Wertpapiere | I8: Titres | K8: Titres à court terme | M8: Titres | O8: =B73 -> 2110 | R8: =B141 -> 4280 | S8: Variation stock | Y8: 1060 Titres à court terme
B9: 1069 | C9: Corr. Titres | D9: + | E9: - | I9: Ajust. titres | K9: Corr. Titres | O9: =B75 -> 2140 | P9: Autres dettes fin. | R9: =B142 -> 4290 | U9: =B120 -> 3400 | V9: =C120 -> Ventes de prestations | Y9: 1069 Corr. Titres
B10: 1100 | C10: Créances s/déb. | D10: + | E10: - | G10: Forderungen an Kunden | I10: Créances clients | K10: Débiteurs-clients | M10: Créances clients | O10: =B76 -> 2150 | R10: =B143 -> 4400 | S10: Prestations de tiers | U10: 3410 | Y10: 1100 Créances s/déb.
B11: 1108 | D11: + | E11: - | G11: Dubiose Debitoren | I11: Cré. douteuses | M11: Cré. douteuses | O11: =B77 -> 2170 | R11: =B144 -> 4500 | S11: Ch. d 'énergie d'ex. | U11: 3420 | Y11: 1108
B12: 1109 | C12: Corr. Débiteurs | D12: + | E12: - | G12: Rückstellungen für Forderungen | I12: Ducroire | K12: Corr. Débiteurs | M12: Prov. s/créances | O12: =B78 -> 2175 | R12: =B145 -> 4700 | U12: 3600 | V12: Produits annexes | Y12: 1109 Corr. Débiteurs
B13: 1110 | C13: Créances s/ participations | D13: + | E13: - | G13: Sonstige Forderungen | I13: Créances envers le groupe | K13: Créances s/ participations | M13: Autres créances | O13: =B79 -> 2180 | R13: =B146 -> 4900 | S13: Déduc. obtenues | U13: 3620 | Y13: 1110 Créances s/ participations
B14: 1140 | C14: Prêts | D14: + | E14: - | G14: Sonstige Debitoren | I14: Avances et prêts | K14: Prêts | M14: Avances salaires | U14: 3660 | Y14: 1140 Prêts
B15: 1170 | C15: Impôt préalable I | D15: + | E15: - | G15: Vorherige Steuer I | I15: TVA à récupérer I | K15: Impôt préalable I | M15: Impôt préalable I | O15: =B80 -> 2200 | P15: =C80 -> TVA due | R15: =B147 -> 5000 | U15: 3700 | V15: Prestations propres | Y15: 1170 Impôt préalable I
B16: 1171 | C16: Impôt préalable II | D16: + | E16: - | G16: Vorherige Steuer II | I16: TVA à récupérer II | K16: Impôt préalable II | M16: Impôt préalable II | O16: 2201 | P16: Décompte TVA | R16: 5200 | S16: Ch. salariales | U16: 3710 | V16: Propres consom. | Y16: 1171 Impôt préalable II
B17: 1172 | D17: + | E17: - | G17: Mehrwertsteuer-Saldo | I17: Solde TVA | M17: Solde TVA | O17: 2208 | P17: Impôts directs | R17: 5270 | S17: Charges sociales | U17: 3800 | V17: Déductions / ventes | Y17: 1172
B18: 1176 | C18: Impôt anticipé à récupérer | D18: + | E18: - | G18: Vorsteuer | I18: Impôt anticipé | K18: Impôt anticipé à récupérer | M18: Créance AFC | O18: 2230 | P18: Autres dettes à ct | R18: 5280 | U18: 3805 | V18: Pertes /clients | Y18: 1176 Impôt anticipé à récupérer
B19: 1180 | C19: Assur. sociales | D19: + | E19: - | I19: Autres créances à ct | K19: Assur. sociales | O19: 2235 | R19: 5700 | Y19: 1180 Assur. sociales
B20: 1188 | C20: c/c Impôt source | D20: + | E20: - | K20: c/c Impôt source | O20: 2261 | P20: Dividendes | R20: 5800 | S20: Autres ch. de personnel | U20: =B130 -> 3900 | V20: Variation des stocks | Y20: 1188 c/c Impôt source
B21: 1190 | C21: Autres créances à ct | D21: + | E21: - | K21: Autres créances à ct | O21: 2270 | P21: c/c LPP | R21: 5900 | S21: Prestations de tiers | U21: 3903 | V21: Variation produits finis | Y21: 1190 Autres créances à ct
B22: 1192 | D22: + | E22: - | G22: Ofenanzahlungen . | M22: Acomptes four. | O22: 2271 | P22: c/c AVS, Ai, AC | U22: 3905 | Y22: 1192
B23: 1193 | D23: + | E23: - | G23: Protestierte Wirkungen | M23: Effets protestés | O23: 2272 | P23: c/c CAF | R23: =B154 -> 6000 | S23: =C154 -> Ch. de locaux | U23: 3907 | Y23: 1193
B24: 1199 | C24: Corr. Créances | D24: + | E24: - | I24: Ajust. des créances | K24: Corr. Créances | O24: 2279 | P24: c/c Impôt à la source | R24: 6100 | S24: ERR | U24: 3940 | V24: Variation prest. n. fact. | Y24: 1199 Corr. Créances
B25: 1200 | C25: Stock | D25: + | E25: - | G25: Bestand Handelswaren | I25: Stock | K25: Stocks de marchandises | M25: Stock | R25: 6110 | Y25: 1200 Stock
B26: 1210 | C26: Stocks matière | D26: + | E26: - | G26: Materialbestand | I26: Stock matière | K26: Stocks matière | M26: Stock matière | O26: =B90 -> 2300 | P26: =C90 -> Passif transitoire | R26: =B158 -> 6160 | S26: =C158 ->  | U26: =B180 -> 7400 | V26: =C180 ->  | Y26: 1210 Stocks matière
B27: 1260 | C27: Stocks produits | D27: + | E27: - | I27: Stock de produits finis | K27: Stocks produits | O27: =B91 -> 2301 | P27: Prod. encaissés d'av | R27: 6200 | S27: Ch. véhicules | U27: =B181 -> 7410 | Y27: 1260 Stocks produits
B28: 1270 | C28: Stocks semi-ouvrés | D28: + | E28: - | I28: Produits commandés nf | K28: Stocks semi-ouvrés | O28: =B92 -> 2302 | P28: Charges à payer | R28: 6280 | S28: Frais expédition | U28: =B182 -> 7500 | V28: Prod. des immeubles | Y28: 1270 Stocks semi-ouvrés
B29: 1280 | C29: Travaux en cours | D29: + | E29: - | I29: Travaux en cours | K29: Travaux en cours | O29: =B93 -> 2330 | P29: Provisions à ct | R29: 6300 | S29: Assurances | U29: =B183 -> 7510 | V29: Ch. des immeubles | Y29: 1280 Travaux en cours
B30: 1300 | C30: Actifs transitoires | D30: + | E30: - | G30: Rechningsabgrenzung Aktiva | I30: Actif transitoire | K30: Actifs transitoires | M30: Actif transitoire | O30: =B94 -> 2400 | P30: Dettes bancaires lt | R30: 6302 | U30: =B184 -> 7520 | Y30: 1300 Actifs transitoires
B31: 1301 | C31: Prod. à recevoir | D31: + | E31: - | G31: Angefangene Arbeiten | I31: Ch. payées d'av. | K31: Prod. à recevoir | M31: Ch. cons. d'av. | O31: =B95 -> 2420 | P31: Engagements leasing | R31: 6400 | S31: Ch.d'énergie | Y31: 1301 Prod. à recevoir
B32: 1302 | C32: Ch. payées d'av. | D32: + | E32: - | G32: Im Voraus bezahlter Aufwand | I32: Prod. à recevoir | K32: Ch. payées d'av. | M32: Prod. à recevoir | O32: =B96 -> 2440 | P32: Emprunts | R32: 6500 | S32: Ch. admin. | U32: =B185 -> 8000 | V32: =C185 -> Ch. hors exploitation | Y32: 1302 Ch. payées d'av.
B33: 1400 | C33: Titres à long terme | D33: + | E33: - | I33: Titres long terme | K33: Titres à long terme | O33: =B97 -> 2451 | P33: Hypothèques | R33: 6510 | U33: 8005 | Y33: 1400 Titres à long terme
B34: 1409 | C34: Corr. des titres | D34: + | E34: - | I34: Ajust. titres | K34: Corr. des titres | O34: =B98 -> 2500 | P34: Autres dettes lt | R34: 6520 | U34: 8010 | Y34: 1409 Corr. des titres
B35: 1420 | D35: + | E35: - | G35: Beteiligungen | M35: Participations | O35: =B99 -> 2600 | P35: =C99 -> Provisions | R35: 6570 | U35: 8015 | Y35: 1420
B36: 1440 | C36: Prêts | D36: + | E36: - | G36: Gewährte Darlehen | I36: Prêts accordés à lt | K36: Prêts | M36: Prêts accordés | R36: 6600 | S36: Ch. de publicité | U36: 8100 | V36: Prod. hors exploitation | Y36: 1440 Prêts
B37: 1450 | D37: + | E37: - | G37: Kredit langer Begriff | I37: Crédits à lt | M37: Cré. long terme | O37: =B100 -> 2800 | P37: Capital | R37: 6700 | S37: ACE | U37: 8110 | Y37: 1450
B38: 1480 | C38: Participations | D38: + | E38: - | I38: Participations | K38: Participations | O38: 2850 | P38: Privé | R38: 6710 | U38: 8500 | V38: Ch. exceptionnelles | Y38: 1480 Participations
B39: 1489 | C39: Corr. Participations | D39: + | E39: - | I39: Ajust. participations | K39: Corr. Participations | O39: 2891 | R39: 6800 | S39: Amortissements | U39: 8510 | V39: Prod. exceptionnels | Y39: 1489 Corr. Participations
B40: 1500 | C40: Machines et appareils | D40: + | E40: - | G40: Maschinen | I40: Machines | K40: Machines et appareils | M40: Machines | R40: 6840 | U40: 8900 | V40: Impôts directs | Y40: 1500 Machines et appareils
B41: 1509 | C41: Corr. Machines | D41: + | E41: - | G41: Tilgungsfond/Maschnen | I41: Ajust. machines | K41: Corr. Machines | M41: Amo. s/machines | O41: =B103 -> 2900 | P41: =C103 -> Réserve / capital | R41: 6850 | U41: 8910 | Y41: 1509 Corr. Machines
B42: 1510 | C42: Mobilier et installations | D42: + | E42: - | G42: Mobilar | I42: Mobilier | K42: Mobilier et installations | M42: Mobilier | O42: 2910 | R42: 6860 | Y42: 1510 Mobilier et installations
B43: 1519 | C43: Corr. Mobilier | D43: + | E43: - | G43: Kumul. Abschr. f. Mobilar | I43: Ajust. mobilier | K43: Corr. Mobilier | M43: Amor. s/mobilier | O43: 2920 | R43: 6900 | S43: Charges financières | U43: =B195 -> 9000 | V43: Résultat | Y43: 1519 Corr. Mobilier
B44: 1520 | C44: Machines de bureau | D44: + | E44: - | G44: Informatik | I44: Informatique | K44: Machines de bureau | M44: Informatique | O44: 2930 | R44: 6950 | S44: Produits financiers | U44: 9010 | Y44: 1520 Machines de bureau
B45: 1529 | C45: Corr. Bureau | D45: + | E45: - | G45: Kumul. Abschr. f. Informatik | I45: Ajust. info. | K45: Corr. Bureau | M45: Amor. s/info. | O45: 2940 | P45: Réserve d'évaluation | U45: 9020 | Y45: 1529 Corr. Bureau
B46: 1530 | C46: Véhicules | D46: + | E46: - | G46: Fahrzeuge | I46: Véhicules | K46: Véhicules | M46: Véhicules | O46: 2950 | P46: Réserve / bénéfice | U46: 9100 | V46: Bilan d'ouverture | Y46: 1530 Véhicules
B47: 1539 | C47: Corr. Véhicules | D47: + | E47: - | G47: Kumul. Abschr. f. Fahrzeuge | I47: Ajust. véhicules | K47: Corr. Véhicules | M47: Amor. s/véhicules | O47: 2960 | P47: Réserves facultatives | U47: 9110 | V47: Bilan de clôture | Y47: 1539 Corr. Véhicules
B48: 1540 | C48: Outillages et appareils | D48: + | E48: - | G48: Ausrüstung | I48: Outillage | K48: Outillages et appareils | M48: Outillage | O48: 2970 | P48: Bén. ou perte reporté | U48: 9200 | V48: Bénéfice de l'exercice/(perte de l'exercice) | Y48: 1540 Outillages et appareils
B49: 1549 | C49: Corr. Outillages | D49: + | E49: - | G49: Kumul. Abschr. f.Ausrüstung | I49: Ajust. outillage | K49: Corr. Outillages | M49: Amor. s/outillage | O49: 2979 | P49: Résultat de l'exercice | U49: =B202 -> 0 | V49: =C202 -> 0 | Y49: 1549 Corr. Outillages
B50: 1550 | D50: + | E50: - | I50: Install. Stockage | O50: 2990 | Y50: 1550
B51: 1559 | D51: + | E51: - | I51: Ajust. instal. stockage | O51: 2992 | Y51: 1559
B52: 1560 | D52: + | E52: - | G52: Andere Aktiva | I52: Autres actifs | M52: Autres actifs | Y52: 1560
B53: 1569 | D53: + | E53: - | G53: Kumul. Abschr. | I53: Ajust. autres actifs | M53: Amor. s/autres | Y53: 1569
B54: 1600 | C54: Immeubles | D54: + | E54: - | G54: Immobilie | I54: Immeubles comm. | K54: Immeubles | M54: Immeubles | O54: =VLOOKUP(P70,O74:Q79,2) -> Plan PME 2014 - version LEP | T54: Les modifications sont à apporter dans | Y54: 1600 Immeubles
B55: 1609 | C55: Corr. Immeubles | D55: + | E55: - | G55: Kumul. Abschr. f. Immobilie | I55: Ajust. iImmeubles c. | K55: Corr. Immeubles | M55: Amo. s/immeubles | T55: la colonne de gauche exclusivement ! | Y55: 1609 Corr. Immeubles
B56: 1660 | D56: + | E56: - | I56: Immeubles non com. | Y56: 1660
B57: 1669 | D57: + | E57: - | I57: Ajust. immeubles nc. | Y57: 1669
B58: 1700 | C58: Brevets, know-how | D58: + | E58: - | G58: Patente | I58: Brevets - Patentes | K58: Brevets, know-how | M58: Brevets | Y58: 1700 Brevets, know-how
B59: 1709 | C59: Corr. Brevets | D59: + | E59: - | G59: Kumul. Abschr. f. Patente | I59: Ajust. brevet | K59: Corr. Brevets | M59: Amor. s/brevet | Y59: 1709 Corr. Brevets
B60: 1720 | D60: + | E60: - | I60: Licences | Y60: 1720
B61: 1729 | D61: + | E61: - | I61: Ajust. Licences | Y61: 1729
B62: 1770 | C62: Goodwill | D62: + | E62: - | G62: Goodwill | I62: Goodwill | K62: Goodwill | M62: Goodwill | Y62: 1770 Goodwill
B63: 1779 | C63: Corr. Goodwill | D63: + | E63: - | G63: Kumul. Abschr. f. Goodwill | I63: Ajust. goodwill | K63: Corr. Goodwill | M63: Amor. s/goodwill | Y63: 1779 Corr. Goodwill
B64: 1800 | D64: + | E64: - | G64: Gründungskosten | I64: Frais de fondation | M64: Frais de fondation | Y64: 1800
B65: 1850 | C65: Capital-actions non libéré | D65: + | E65: - | G65: Aktionäre | I65: Capital-actions non libéré | K65: Capital-actions non libéré | M65: Actionnaires | Y65: 1850 Capital-actions non libéré
B66: 1860 | D66: + | E66: - | G66: Teilnehmer | M66: Participants | Y66: 1860
D67: + | E67: -
B68: 2000 | C68: Fournisseurs | D68: - | E68: + | G68: Lieferanten | I68: Fournisseurs | K68: Fournisseurs | M68: Fournisseurs | Y68: 2000 Fournisseurs
B69: 2010 | D69: - | E69: + | G69: Andere Schulden | I69: Autres dettes | M69: Autres dettes | O69: Colonne | P69: Choix et ancien choix | Y69: 2010
B70: 2030 | C70: Acomptes de tiers | D70: - | E70: + | G70: Kundenanzahlungen | I70: Acomptes clients | K70: Acomptes de tiers | M70: Acomptes clients | O70: FALSE | P70: 2 | Y70: =B70 & " " & C70 -> 2030 Acomptes de tiers
B71: 2050 | D71: - | E71: + | I71: Dettes / groupe | P71: 2 | Y71: 2050
B72: 2100 | C72: Dettes bancaires à ct | D72: - | E72: + | G72: Bankverbindlichkeiten | I72: Dettes bancaires | K72: Dettes bancaires à ct | M72: Dettes bancaires | Y72: 2100 Dettes bancaires à ct
B73: 2110 | D73: - | E73: + | G73: Andere Banken | I73: Autres banques | M73: Autres banques | P73: Liste des plans | Y73: 2110
B74: 2120 | C74: Engagements leasing | D74: - | E74: + | K74: Engagements leasing | O74: 1 | P74: Plan général PME - Sterchi 1997 | Y74: 2120 Engagements leasing
B75: 2140 | C75: Autres dettes fin. | D75: - | E75: + | I75: Emprunts à ct | K75: Autres dettes fin. | O75: 2 | P75: Plan PME 2014 - version LEP | Y75: 2140 Autres dettes fin.
B76: 2150 | D76: - | E76: + | G76: Schulden fein. | M76: Dettes fin. | O76: 3 | P76: Plan PME 2014 - version edupool.ch | Y76: 2150
B77: 2170 | D77: - | E77: + | G77: Avs-Schulden | M77: Dettes AVS | O77: 4 | P77: Sterchi 1997 en allemand | Y77: 2170
B78: 2175 | D78: - | E78: + | G78: Lpp-Schulden | M78: Dettes LPP | Y78: 2175
B79: 2180 | D79: - | E79: + | G79: Schulden Kiste AF | M79: Dettes Caisse AF | Y79: 2180
B80: 2200 | C80: TVA due | D80: - | E80: + | G80: Geschuldete Mehrwertsteuer | I80: TVA due | K80: TVA due | M80: TVA due | Y80: 2200 TVA due
B81: 2201 | C81: Décompte TVA | D81: - | E81: + | G81: Auszupackende Mehrwertsteuer | I81: TVA à décaisser | K81: Décompte TVA | M81: TVA à décaisser | Y81: 2201 Décompte TVA
B82: 2208 | C82: Impôts directs | D82: - | E82: + | I82: Impôts directs | K82: Impôts directs | Y82: 2208 Impôts directs
B83: 2230 | C83: Autres dettes à ct | D83: - | E83: + | G83: Dividenden | K83: Autres dettes à ct | M83: Dividendes | Y83: 2230 Autres dettes à ct
B84: 2235 | D84: - | E84: + | G84: Tantiemen | I84: Tantièmes | M84: Tantièmes | Y84: 2235
B85: 2261 | C85: Dividendes | D85: - | E85: + | I85: Dividendes | K85: Dividendes | Y85: 2261 Dividendes
B86: 2270 | C86: c/c LPP | D86: - | E86: + | G86: AVS | I86: Dettes AVS | K86: c/c LPP | Y86: 2270 c/c LPP
B87: 2271 | C87: c/c AVS, Ai, AC | D87: - | E87: + | G87: Pensionskiste | I87: Dettes LPP | K87: c/c AVS, Ai, AC | Y87: 2271 c/c AVS, Ai, AC
B88: 2272 | C88: c/c CAF | D88: - | E88: + | G88: Kiste comp. | I88: Dettes Caisse comp. | K88: c/c CAF | Y88: 2272 c/c CAF
B89: 2279 | C89: c/c Impôt à la source | D89: - | E89: + | I89: Dettes Impôt /source | K89: c/c Impôt à la source | Y89: 2279 c/c Impôt à la source
B90: 2300 | C90: Passif transitoire | D90: - | E90: + | I90: Passif transitoire | K90: Passif transitoire | M90: Passif transitoire | Y90: 2300 Passif transitoire
B91: 2301 | C91: Prod. encaissés d'av | D91: - | E91: + | G91: Rechningsabgrenzung Passiva | I91: Charges à payer | K91: Prod. encaissés d'av | M91: Charges à payer | Y91: 2301 Prod. encaissés d'av
B92: 2302 | C92: Charges à payer | D92: - | E92: + | G92: Zu zahlende Lasten | I92: Prod. cons. d'av. | K92: Charges à payer | M92: Prod. cons. d'av. | Y92: 2302 Charges à payer
B93: 2330 | C93: Provisions à ct | D93: - | E93: + | G93: Prod. Idioten. von av. | K93: Provisions à ct | Y93: 2330 Provisions à ct
B94: 2400 | C94: Dettes bancaires lt | D94: - | E94: + | I94: Dettes long terme | K94: Dettes bancaires lt | Y94: 2400 Dettes bancaires lt
B95: 2420 | C95: Engagements leasing | D95: - | E95: + | K95: Engagements leasing | Y95: 2420 Engagements leasing
B96: 2440 | C96: Emprunts | D96: - | E96: + | G96: Hypothekenschuld | I96: Emprunts | K96: Emprunts | M96: Dettes hypoth. | Y96: 2440 Emprunts
B97: 2451 | C97: Hypothèques | D97: - | E97: + | I97: Dettes hypoth. | K97: Hypothèques | Y97: 2451 Hypothèques
B98: 2500 | C98: Autres dettes lt | D98: - | E98: + | G98: Erhaltenes Darlehen | I98: Autres prêts à lt | K98: Autres dettes lt | M98: Prêt obtenu | Y98: 2500 Autres dettes lt
B99: 2600 | C99: Provisions | D99: - | E99: + | G99: Vorräte | I99: Provisions | K99: Provisions | M99: Provisions | Y99: 2600 Provisions
B100: 2800 | C100: Capital | D100: - | E100: + | G100: Kapital | I100: Capital | K100: Capital | M100: Capital | Y100: 2800 Capital
B101: 2850 | C101: Privé | D101: - | E101: + | G101: Privat | I101: Privé | K101: Privé | M101: Privé | Y101: 2850 Privé
B102: 2891 | D102: - | E102: + | I102: Bén. / perte exercice | Y102: 2891
B103: 2900 | C103: Réserve / capital | D103: - | E103: + | G103: Allgemeiner Vorbehalt | I103: Réserves / capital | K103: Réserve / capital | M103: Réserve générale | Y103: 2900 Réserve / capital
B104: 2910 | D104: - | E104: + | G104: Aktionsreserve | I104: Réserve actions | M104: Réserve actions | Y104: 2910
B105: 2920 | D105: - | E105: + | G105: Reserve Schätzung | I105: Réserve réévaluation | M105: Réserve réévaluation | Y105: 2920
B106: 2930 | D106: - | E106: + | G106: Spezielle Reserve | I106: Réserve spéciale | M106: Réserve spéciale | Y106: 2930
B107: 2940 | C107: Réserve d'évaluation | D107: - | E107: + | G107: Emissionsprämie | I107: Prime émission | K107: Réserve d'évaluation | M107: Prime émission | Y107: 2940 Réserve d'évaluation
B108: 2950 | C108: Réserve / bénéfice | D108: - | E108: + | I108: Réserves/ bénéfice | K108: Réserve / bénéfice | Y108: 2950 Réserve / bénéfice
B109: 2960 | C109: Réserves facultatives | D109: - | E109: + | I109: Réserves libres | K109: Réserves facultatives | Y109: 2960 Réserves facultatives
B110: 2970 | C110: Bén. ou perte reporté | D110: - | E110: + | I110: Résultat reporté | K110: Bén. ou perte reporté | Y110: 2970 Bén. ou perte reporté
B111: 2979 | C111: Résultat de l'exercice | D111: - | E111: + | I111: Résultat exercice | K111: Résultat de l'exercice | Y111: 2979 Résultat de l'exercice
B112: 2990 | D112: - | E112: + | G112: Gewinnvortrag | M112: Bénéfice reporté | Y112: 2990
B113: 2992 | D113: - | E113: + | G113: Bilanzgewinn | M113: Bénéfice bilan | Y113: 2992
D114: - | E114: +
B115: 3000 | C115: Production | D115: - | E115: + | G115: Produktion | I115: Production | K115: Production | M115: Production | Y115: 3000 Production
B116: 3200 | C116: Ventes brutes | D116: - | E116: + | G116: Warenverkauf | I116: Ventes | K116: Ventes | M116: Ventes | Y116: 3200 Ventes brutes
B117: 3290 | D117: - | E117: + | G117: Gewährte Nachlässe | I117: Déd. accordées | M117: Déd. accordées | Y117: 3290
B118: 3293 | D118: - | E118: + | G118: Büroangestelltes. bewandert | I118: Commis. versées | M118: Commis. versées | Y118: 3293
B119: 3295 | D119: - | E119: + | G119: /cr-Verluste éances | I119: Pertes /créances | M119: Pertes /créances | Y119: 3295
B120: 3400 | C120: Ventes de prestations | D120: - | E120: + | G120: Honorare | I120: Vente de services | K120: Ventes de prestations | M120: Honoraires | Y120: 3400 Ventes de prestations
B121: 3410 | D121: - | E121: + | I121: Produits de transports | Y121: 3410
B122: 3420 | D122: - | E122: + | I122: Honoraires | Y122: 3420
B123: 3600 | C123: Produits annexes | D123: - | E123: + | G123: Arbeitsprodukte | I123: Autres ventes services | K123: Produits annexes | M123: Produits travaux | Y123: 3600 Produits annexes
B124: 3620 | D124: - | E124: + | G124: Andere Produkte | M124: Autres produits | Y124: 3620
B125: 3660 | D125: - | E125: + | G125: Beiträge | I125: Cotisations | M125: Cotisations | Y125: 3660
B126: 3700 | C126: Prestations propres | D126: - | E126: + | G126: Nahe. an sich selbst | I126: Pres. à soi-même | K126: Prestations propres | M126: Pres. à soi-même | Y126: 3700 Prestations propres
B127: 3710 | C127: Propres consom. | D127: - | E127: + | I127: Consom. propres | K127: Propres consom. | Y127: 3710 Propres consom.
B128: 3800 | C128: Déductions / ventes | D128: - | E128: + | I128: Déductions / ventes | K128: Déductions / ventes | Y128: 3800 Déductions / ventes
B129: 3805 | C129: Pertes /clients | D129: - | E129: + | I129: Pertes / créances | K129: Pertes /clients | Y129: 3805 Pertes /clients
B130: 3900 | C130: Variation des stocks | D130: - | E130: + | G130: Déd. gewährt | I130: Vari. stocks produits | K130: Variation des stocks | M130: Déd. accordées | Y130: 3900 Variation des stocks
B131: 3903 | C131: Variation produits finis | D131: - | E131: + | G131: Kommissionen | I131: Commissions | K131: Variation produits finis | M131: Commissions | Y131: 3903 Variation produits finis
B132: 3905 | D132: - | E132: + | G132: /cr-Verluste éances | M132: Pertes /créances | Y132: 3905
B133: 3907 | D133: - | E133: + | G133: Frachten und Häfen | M133: Frets et ports | Y133: 3907
B134: 3940 | C134: Variation prest. n. fact. | D134: - | E134: + | I134: Variation valeurs n f | K134: Variation prest. n. fact. | Y134: 3940 Variation prest. n. fact.
D135: - | E135: +
B136: 4000 | C136: Ch. de matériel | D136: + | E136: - | G136: Materialkäufe | I136: Achats matière | K136: Ch. de matériel | M136: Achats matière | Y136: 4000 Ch. de matériel
B137: 4200 | C137: Achats bruts | D137: + | E137: - | G137: Wareneinkauf | I137: Achats march. | K137: Ch. de marchandises | M137: Achats march. | Y137: =B137 & " " & C137 -> 4200 Achats bruts
B138: 4201 | D138: + | E138: - | G138: Mehrwertsteuer-Käufe | I138: Achats TVA réd. | M138: Achats TVA réd. | Y138: 4201
B139: 4202 | D139: + | E139: - | G139: Käufe Mehrwertsteuer 0% | I139: Achats TVA 0% | M139: Achats TVA 0% | Y139: 4202
B140: 4270 | C140: Frais d'achats | D140: + | E140: - | G140: Kaufskosten | I140: Frais d'achats | M140: Frais d'achats | Y140: 4270 Frais d'achats
B141: 4280 | C141: Variation stock | D141: + | E141: - | G141: Bestandsveränderung | I141: Variation stock | M141: Variation stock | Y141: 4280 Variation stock
B142: 4290 | D142: + | E142: - | G142: Déd. erhalten | I142: Déd. obtenues | M142: Déd. obtenues | Y142: 4290
B143: 4400 | C143: Prestations de tiers | D143: + | E143: - | G143: Vergabe von Unteraufträgen | I143: Prestations de tiers | K143: Prestations de tiers | M143: Sous-traitance | Y143: 4400 Prestations de tiers
B144: 4500 | C144: Ch. d 'énergie d'ex. | D144: + | E144: - | I144: Charges énergie d'ex. | K144: Ch. d 'énergie d'ex. | Y144: 4500 Ch. d 'énergie d'ex.
B145: 4700 | D145: + | E145: - | G145: Direkte Lasten | I145: Autres charges d'ex. | M145: Charges directes | Y145: 4700
B146: 4900 | C146: Déduc. obtenues | D146: + | E146: - | G146: Gewährte erhalten | I146: Déd. obtenues | K146: Déd. sur charges | M146: Déd. obtenues | Y146: 4900 Déduc. obtenues
B147: 5000 | D147: + | E147: - | G147: Gehälter prod. | I147: Salaires prod. | M147: Salaires prod. | Y147: 5000
B148: 5200 | C148: Ch. salariales | D148: + | E148: - | G148: Gehälter | I148: Salaires | K148: Charges salariales | M148: Salaires | Y148: 5200 Ch. salariales
B149: 5270 | C149: Charges sociales | D149: + | E149: - | G149: Soziallasten | K149: Charges sociales | M149: Charges sociales | Y149: 5270 Charges sociales
B150: 5280 | D150: + | E150: - | G150: Aufwendungen f. Personal | M150: Ch. de personnel | Y150: 5280
B151: 5700 | D151: + | E151: - | I151: Charges sociales | Y151: 5700
B152: 5800 | C152: Autres ch. de personnel | D152: + | E152: - | I152: Autres ch. du personnel | K152: Autres ch. de personnel | Y152: 5800 Autres ch. de personnel
B153: 5900 | C153: Prestations de tiers | D153: + | E153: - | I153: Ch. personnels tempo. | K153: Prestations de tiers | Y153: 5900 Prestations de tiers
B154: 6000 | C154: Ch. de locaux | D154: + | E154: - | G154: Mietzins | I154: Loyer | K154: Charges de locaux | M154: Loyer | Y154: 6000 Ch. de locaux
B155: 6100 | C155: ERR | D155: + | E155: - | G155: Wartung & Reparatur | I155: Entretien & répar. | K155: ERR | M155: Entretien & répar. | Y155: 6100 ERR
B156: 6110 | D156: + | E156: - | G156: Reparaturen | I156: Réparations | M156: Réparations | Y156: 6110
B157: 6150 | C157: Ch. de leasing | D157: + | E157: - | K157: Ch. de leasing | Y157: 6150 Ch. de leasing
B158: 6160 | D158: + | E158: - | G158: Leasing | I158: Leasing | M158: Leasing | Y158: 6160
B159: 6200 | C159: Ch. véhicules | D159: + | E159: - | G159: Fahrzeugkosten | I159: Charges de véhicules | K159: Ch. de véhicules | M159: Frais véhicules | Y159: 6200 Ch. véhicules
B160: 6280 | C160: Frais expédition | D160: + | E160: - | G160: Versandkosten | I160: Frais expédition | M160: Frais expédition | Y160: 6280 Frais expédition
B161: 6300 | C161: Assurances | D161: + | E161: - | G161: Versicherungen | I161: Assurances | K161: Assurances | M161: Assurances | Y161: 6300 Assurances
B162: 6302 | D162: + | E162: - | G162: Steuern | I162: Taxes | M162: Taxes | Y162: 6302
B163: 6400 | C163: Ch.d'énergie | D163: + | E163: - | G163: Elektrizität | I163: Charges d'énergie | K163: Ch.d'énergie | M163: Electricité | Y163: 6400 Ch.d'énergie
B164: 6500 | C164: Ch. admin. | D164: + | E164: - | G164: Kosten adminis. | I164: Charges d'admin. | K164: Ch. administration | M164: Frais adminis. | Y164: 6500 Ch. admin.
B165: 6510 | D165: + | E165: - | G165: Telephone | I165: Téléphones | M165: Téléphones | Y165: 6510
B166: 6520 | D166: + | E166: - | G166: Abonnementgs | I166: Abonnements | M166: Abonnements | Y166: 6520
B167: 6570 | D167: + | E167: - | G167: Kosten Informatik | I167: Charges informatique | M167: Frais informatique | Y167: 6570
B168: 6600 | C168: Ch. de publicité | D168: + | E168: - | G168: Werbung | I168: Publicité | K168: Ch. de publicité | M168: Publicité | Y168: 6600 Ch. de publicité
B169: 6700 | C169: ACE | D169: + | E169: - | G169: Sonstige Betriebsaufwendungen | I169: ACE | K169: ACE (autres charges) | M169: ACE | Y169: 6700 ACE
B170: 6710 | D170: + | E170: - | G170: Kassenmanko | I170: Diff. de caisse | M170: Diff. de caisse | Y170: 6710
B171: 6800 | C171: Amortissements | D171: + | E171: - | G171: Interessen-Last | I171: Amortissements | K171: Amortissements | M171: Intérêts-charges | Y171: 6800 Amortissements
B172: 6840 | D172: + | E172: - | G172: Bankspesen | M172: Frais bancaires | Y172: 6840
B173: 6850 | D173: - | E173: + | G173: Interessen-Produkt | M173: Intérêts-produits | Y173: 6850
B174: 6860 | D174: + | E174: - | G174: Emissionskosten | M174: Frais d'émission | Y174: 6860
B175: 6900 | C175: Charges financières | D175: + | E175: - | G175: Abschreibungen | I175: Charges financiers | K175: Charges financières | M175: Amortissements | Y175: 6900 Charges financières
B176: 6950 | C176: Produits financiers | D176: - | E176: + | I176: Produits financiers | K176: Produits financiers | Y176: 6950 Produits financiers
B178: 7000 | C178: Prod. accessoires | D178: - | E178: + | I178: Prod. des titres | K178: Prod. accessoires | M178: Prod. financiers | Y178: 7000 Prod. accessoires
B179: 7010 | C179: Ch. accessoires | D179: - | E179: + | I179: Ch. des titres | K179: Ch. accessoires | M179: Prod. financiers | Y179: 7010 Ch. accessoires
B180: 7400 | D180: - | E180: + | G180: Finanzerträge | M180: Prod. financiers | Y180: 7400
B181: 7410 | D181: + | E181: - | G181: Aufwendungen / Finanzerträge | M181: Ch. s/placements | Y181: 7410
B182: 7500 | C182: Prod. des immeubles | D182: - | E182: + | G182: Immobilienaufw. & -ertr. | I182: Prod. des immeubles | K182: Prod. des immeubles | M182: Prod. d'immeubles | Y182: 7500 Prod. des immeubles
B183: 7510 | C183: Ch. des immeubles | D183: + | E183: - | G183: Aufwendungen / Gebäude | I183: Ch. des immeubles | K183: Ch. des immeubles | M183: Ch. s/ immeubles | Y183: 7510 Ch. des immeubles
B184: 7520 | D184: ± | E184: ± | G184: Heizung | I184: Chauffage | M184: Chauffage | Y184: 7520
B185: 8000 | C185: Ch. hors exploitation | D185: - | E185: + | G185: Ausnahmeprodukte. | I185: Ch. hors exploitation | K185: Ch. hors exploitation | M185: Produits exception. | Y185: 8000 Ch. hors exploitation
B186: 8005 | D186: - | E186: + | G186: Subventionen | M186: Subventions | Y186: 8005
B187: 8010 | D187: + | E187: - | G187: Ausnahmelasten. | I187: Ch. exception. | M187: Charges exception. | Y187: 8010
B188: 8015 | D188: + | E188: - | G188: Verluste f. Forderungen | M188: Pertes s/créances | Y188: 8015
B189: 8100 | C189: Prod. hors exploitation | D189: - | E189: + | I189: Prod. hors exploitation | K189: Prod. hors exploitation | Y189: 8100 Prod. hors exploitation
B190: 8110 | D190: - | E190: + | I190: Prod. imm. non com. | Y190: 8110
B191: 8500 | C191: Ch. exceptionnelles | D191: + | E191: - | I191: Ch. extraordinaires | K191: Ch. exceptionnelles | Y191: 8500 Ch. exceptionnelles
B192: 8510 | C192: Prod. exceptionnels | D192: - | E192: + | I192: Prod. extraordinaires | K192: Prod. exceptionnels | Y192: 8510 Prod. exceptionnels
B193: 8900 | C193: Impôts directs | D193: + | E193: - | G193: Steuer auf Gewinn | I193: Impôts directs | K193: Impôts directs | M193: Impôt sur bénéfice | Y193: 8900 Impôts directs
B194: 8910 | D194: + | E194: - | G194: Vermögensteuer | M194: Impôt sur capital | Y194: 8910
B195: 9000 | C195: Résultat | D195: ± | E195: ± | G195: Betriebsergebnis | I195: Résultat | K195: Résultat | M195: Résultat | Y195: 9000 Résultat
B196: 9010 | D196: ± | E196: ± | G196: Gesamtergebnis | I196: Résultat global | M196: Résultat global | Y196: 9010
B197: 9020 | D197: ± | E197: ± | G197: Verluste & Profite | M197: Pertes & Profits | Y197: 9020
B198: 9100 | C198: Bilan d'ouverture | G198: Eröffnungsbilanz | I198: Bilan d'ouverture | K198: Bilan d'ouverture | M198: Bilan d'ouverture | Y198: 9100 Bilan d'ouverture
B199: 9110 | C199: Bilan de clôture | G199: Schlußbilanz | I199: Bilan de clôture | K199: Bilan de clôture | M199: Bilan de clôture | Y199: 9110 Bilan de clôture
B200: 9200 | C200: Bénéfice de l'exercice/(perte de l'exercice) | D200: ± | E200: ± | I200: Bénéf./ perte exercice | K200: Bénéfice de l'exercice/(perte de l'exercice) | Y200: 9200 Bénéfice de l'exercice/(perte de l'exercice)
Y202: =B202 & " " & C202 -> 
... 2 more rows

Sheet Journal
D1: Ne pas remplir ce tableau. Il montre l'écriture sélectionnée par le bouton actif du Grand-Livre (No en B70)
B2: Ecriture | C2: Int. | D2: no | F2: Débit | H2: Crédit | I2: Libellé | J2: Sommes | K2: Sommes
B3: ='Grand-livre'!B70 -> 26 | C3: =100*B3+VLOOKUP(B3,Question,2) -> 2601 | D3: =IF($B$3*100+1>$C$3,0,($B$3*100+1)) -> 2601 | E3: =IF(VLOOKUP($D3,Journal,2,FALSE)="","",VLOOKUP($D3,Journal,2,FALSE)) ->  | F3: =IF(VLOOKUP($D3,Journal,3,FALSE)="","",VLOOKUP($D3,Journal,3,FALSE)) ->  | G3: =IF(VLOOKUP($D3,Journal,4,FALSE)="","",VLOOKUP($D3,Journal,4,FALSE)) ->  | H3: =IF(VLOOKUP($D3,Journal,5,FALSE)="","",VLOOKUP($D3,Journal,5,FALSE)) ->  | I3: =IF(VLOOKUP($D3,Journal,6,FALSE)="","",VLOOKUP($D3,Journal,6,FALSE)) ->  | J3: =IF(VLOOKUP($D3,Journal,7,FALSE)="","",VLOOKUP($D3,Journal,7,FALSE)) ->  | K3: =IF(VLOOKUP($D3,Journal,8,FALSE)="","",VLOOKUP($D3,Journal,8,FALSE)) -> 
D4: =IF($B$3*100+2>$C$3,0,($B$3*100+2)) -> 0 | K4: 0
D5: =IF($B$3*100+3>$C$3,0,($B$3*100+3)) -> 0 | K5: 0
D6: =IF($B$3*100+4>$C$3,0,($B$3*100+4)) -> 0 | K6: 0
D7: =IF($B$3*100+5>$C$3,0,($B$3*100+5)) -> 0 | K7: 0
D8: =IF($B$3*100+6>$C$3,0,($B$3*100+6)) -> 0 | K8: 0
B10: Journal pour les opérations du Grand-Livre (Chaque ligne doit avoir un numéro à 3 chiffres, ex. 101,102, 201,301…) | M10: Ce tableau est la réplique de la feuille "Libellés". Ne pas remplir !
B11: Ecriture | C11: no | D11: Int. | F11: Débit | H11: Crédit | I11: Libellé | J11: Sommes | K11: Sommes | M11: 1 | N11: =Libellés!C13 -> Achats de marchandises au comptant CHF 15'000.-.
B12: 1 | C12: 1 | D12: =B12*100+C12 -> 101 | F12: Achats bruts | H12: Trésorerie | I12: Achats march. comptant | J12: 15000 | K12: =J12 -> 15000 | M12: 2 | N12: =Libellés!C14 -> Achats de marchandises à crédit CHF 35'000.-.
B13: 2 | C13: 1 | D13: =B13*100+C13 -> 201 | F13: Achats bruts | H13: Fournisseurs | I13: Achats march. à crédit | J13: 35000 | K13: =J13 -> 35000 | M13: 3 | N13: =Libellés!C15 -> Frais de transport sur marchandises achetées. Payé cash CHF 3'000.-.
B14: 3 | C14: 1 | D14: =B14*100+C14 -> 301 | F14: Frais d'achats | H14: Trésorerie | I14: Frais transport | J14: 3000 | K14: =J14 -> 3000 | M14: 4 | N14: =Libellés!C16 -> Retours aux fournisseurs CHF 2'000.-.
B15: 4 | C15: 1 | D15: 401 | F15: Fournisseurs | H15: Achats bruts | I15: Retours aux fournisseurs | J15: 2000 | K15: 2000 | M15: 5 | N15: =Libellés!C17 -> Ventes au comptant net CHF 15'000.-.
B16: 5 | C16: 1 | D16: 501 | F16: Trésorerie | H16: Ventes brutes | I16: Ventes au comptant | J16: 15000 | K16: 15000 | M16: 6 | N16: =Libellés!C18 -> Ventes à crédit CHF 60'000.-.
B17: 6 | C17: 1 | D17: 601 | F17: Créances s/déb. | H17: Ventes brutes | I17: Ventes à crédit | J17: 60000 | K17: 60000 | M17: 7 | N17: =Libellés!C19 -> Frais d'expédition à notre charge. Payé CHF 2'500.-.
B18: 7 | C18: 1 | D18: 701 | F18: Frais expédition | H18: Trésorerie | I18: Expédition à notre charge | J18: 2500 | K18: 2500 | M18: 8 | N18: =Libellés!C20 -> Commission payée à un tiers CHF 500.-.
B19: 8 | C19: 1 | D19: 801 | F19: Déduc. s/ventes | H19: Trésorerie | I19: Commission versée | J19: 500 | K19: 500 | M19: 9 | N19: =Libellés!C21 -> Retours de marchandises d'un client CHF 800.-.
B20: 9 | C20: 1 | D20: 901 | F20: Ventes brutes | H20: Créances s/déb. | I20: Retour d'un client | J20: 800 | K20: 800 | M20: 10 | N20: =Libellés!C22 -> Paiement d'une facture à un fournisseur brut 12'000.-, net 11'400.-.
B21: 10 | C21: 1 | D21: 1001 | F21: Fournisseurs | H21: Trésorerie | I21: Payé facture | J21: 11400 | K21: 11400 | M21: 11 | N21: =Libellés!C23 -> Escompte obtenu sur la facture d'un fournisseur brut 12'000. net 11'400.-.
B22: 11 | C22: 1 | D22: 1101 | F22: Fournisseurs | H22: Déduc. obtenues | I22: Escompe obtenu | J22: 600 | K22: 600 | M22: 12 | N22: =Libellés!C24 -> Versement d'un client net CHF 20'000.-.
B23: 12 | C23: 1 | D23: 1201 | F23: Trésorerie | H23: Créances s/déb. | I23: Versement d'un client | J23: 20000 | K23: 20000 | M23: 13 | N23: =Libellés!C25 -> Remise accordée à un client CHF 2'000.-.
B24: 13 | C24: 1 | D24: 1301 | F24: Déduc. s/ventes | H24: Créances s/déb. | I24: Remise accordée | J24: 2000 | K24: 2000 | M24: 14 | N24: =Libellés!C26 -> Achats d'emballages (non facturés aux clients). Payé par poste CHF 800.-.
B25: 14 | C25: 1 | D25: 1401 | F25: Frais expédition | H25: Trésorerie | I25: Achats emballages | J25: 800 | K25: 800 | M25: 15 | N25: =Libellés!C27 -> Loyers du magasin payé cash 3'000.-.
B26: 15 | C26: 1 | D26: 1501 | F26: Loyer | H26: Trésorerie | I26: Payé loyer | J26: 3000 | K26: 3000 | M26: 16 | N26: =Libellés!C28 -> Perte due à un client insolvable CHF 1'500.-.
B27: 16 | C27: 1 | D27: 1601 | F27: Pertes / créances | H27: Créances s/déb. | I27: Perte sur client | J27: 1500 | K27: 1500 | M27: 17 | N27: =Libellés!C29 -> Achat de fournitures informatiques. Payé comptant CHF 400.-.
B28: 17 | C28: 1 | D28: 1701 | F28: Frais administration | H28: Trésorerie | I28: Fournitures info | J28: 400 | K28: 400 | M28: 18 | N28: =Libellés!C30 -> Ordre de virement postal pour les salaires CHF 6'000.-.
B29: 18 | C29: 1 | D29: 1801 | F29: Salaires | H29: Trésorerie | I29: Payé salaires nets | J29: 6000 | K29: 6000 | M29: 19 | N29: =Libellés!C31 -> Inventaire final CHF 42'000.-.
B30: 19 | C30: 1 | D30: 1901 | F30: Stock | H30: Variation stock | I30: Inventaire final 42'000.-. | J30: 7000 | K30: 7000 | M30: 20 | N30: =Libellés!C32 -> Virements aux comptes de groupement
B31: 20 | C31: 1 | D31: 2001 | I31: Virements divers | K31: 0 | M31: 21 | N31: =Libellés!C33 -> 0
B32: 24 | C32: 1 | D32: 2401 | F32: Résultat | H32: Capital | I32: Bénéfice net viré au Capital | K32: 0 | M32: 22 | N32: =Libellés!C34 -> 0
D33: 0 | K33: 0 | M33: 23 | N33: =Libellés!C35 -> 0
D34: 0 | K34: 0 | M34: 24 | N34: =Libellés!C36 -> Virement du résultat
D35: 0 | K35: 0 | M35: 25 | N35: =Libellés!C37 -> Variation de fortune (autofinancement)
D36: 0 | K36: 0
D37: 0 | K37: 0
D38: 0 | K38: 0
D39: 0 | K39: 0
D40: 0 | K40: 0
D41: 0 | K41: 0
D42: 0 | K42: 0
D43: 0 | K43: 0
D44: 0 | K44: 0
D45: 0 | K45: 0
D46: 0 | K46: 0
D47: 0 | K47: 0
D48: 0 | K48: 0
D49: 0 | K49: 0
D50: 0 | K50: 0
D51: 0 | K51: 0
D52: 0 | K52: 0
D53: 0 | K53: 0
D54: 0 | K54: 0
D55: 0 | K55: 0
D56: 0 | K56: 0
D57: 0 | K57: 0
D58: 0 | K58: 0
D59: 0 | K59: 0
D60: 0 | K60: 0
D61: 0 | K61: 0
D62: 0 | K62: 0
D63: 0 | K63: 0
D64: 0 | K64: 0
D65: 0 | K65: 0
D66: 0 | K66: 0
D67: 0 | K67: 0
D68: 0 | K68: 0
D69: 0 | K69: 0
D70: 0 | K70: =J70 -> 0
B102: FALSE
D112: 1

Sheet Donnée élèves
C1: Comptabiliser dans un Grand-livre les opérations
C2: sur marchandises ci-dessous.
C4: 0) Reporter dans les comptes les soldes à nouveau du Bilan initial.
C15: 1) Achats de marchandises au comptant CHF 15'000.-.
C16: 2) Achats de marchandises à crédit CHF 35'000.-.
C17: 3) Frais de transport sur marchandises achetées. Payé cash CHF 3'000.-.
C18: 4) Retours aux fournisseurs CHF 2'000.-.
C19: 5) Ventes au comptant net CHF 15'000.-.
C20: 6) Ventes à crédit CHF 60'000.-.
C21: 7) Frais d'expédition à notre charge. Payé CHF 2'500.-.
C22: 8) Commission payée à un tiers CHF 500.-.
C23: 9) Retours de marchandises d'un client CHF 800.-.
C24: 10) Paiement d'une facture à un fournisseur, brut 12'000.-, net 11'400.-.
C25: 11) Escompte obtenu sur la facture d'un fournisseur, brut 12'000. net 11'400.-.
C26: 12) Versement d'un client net CHF 20'000.-.
C27: 13) Remise accordée à un client CHF 2'000.-.
C28: 14) Achats d'emballages (non facturés aux clients). Payé par poste CHF 800.-.
C29: 15) Loyer du magasin payé cash 3'000.-.
C30: 16) Perte due à un client insolvable CHF 1'500.-.
C31: 17) Achat de fournitures informatiques. Payé comptant CHF 400.-.
C32: 18) Ordre de virement postal pour les salaires CHF 6'000.-.
C33: 19) Inventaire final CHF 42'000.-.
C34: 20) Virements aux comptes de groupement.

Sheet Renseignements (hidden)
H2: Entrer dans ces carrés le numéro du compte selon le plan comptable de la feuille 3
M3: (Ctrl + i inserre le no du formulaire Plan comptable dans la cellule active)
B5: 1000 | D5: 1000 Caisse | H5: 1010 | J5: 1010 Poste | N5: 2000 | P5: 2000 Fournisseurs | V5: Blablabla
D6: 1) | E6: 100 | J6: san | K6: 2000 | L6: 1) | M6: 100 | R6: san | S6: 300 | V6: 3) | W6: 20 | AE6: table
F7: 3) | G7: 20 | L7: 2) | M7: 120 | P7: 2) | Q7: 120 | V7: 4) | W7: 30 | AE7: =B13 -> 41 | AF7: =C13 -> 80 | AG7: =D5 -> 1000 Caisse | AH7: =LEFT(AG7,4) -> 1000
L8: 4) | M8: 30 | AE8: =H13 -> 43 | AF8: =I13 -> 1750 | AG8: =J5 -> 1010 Poste | AH8: 1010
AE9: =N13 -> 42 | AF9: =O13 -> 180 | AG9: =P5 -> 2000 Fournisseurs | AH9: 2000
AE10: =T13 -> 1 | AF10: =U13 -> 50 | AG10: =V5 -> Blablabla | AH10: Blab
AE11: =B24 -> 0 | AF11: =C24 -> 0 | AG11: =D16 -> 0 | AH11: 0
AE12: =H24 -> 0 | AF12: =I24 -> 0 | AG12: =J16 -> 0 | AH12: 0
B13: 41 | C13: =E13+G13 -> 80 | D13: =IF(E13=0,"",B14) ->  | E13: =IF(E6+G6=0,0,IF(SUM(E6:E12)>SUM(G6:G12),0,SUM(G6:G12)-SUM(E6:E12))) -> 0 | F13: =IF(G13=0,"",B14) -> v/b. | G13: =IF(E6+G6=0,0,IF(SUM(G6:G12)>SUM(E6:E12),0,SUM(E6:E12)-SUM(G6:G12))) -> 80 | H13: 43 | I13: =K13+M13 -> 1750 | J13: =IF(K13=0,"",H14) ->  | K13: =IF(K6+M6=0,0,IF(SUM(K6:K12)>SUM(M6:M12),0,SUM(M6:M12)-SUM(K6:K12))) -> 0 | L13: =IF(M13=0,"",H14) -> v/b. | M13: =IF(K6+M6=0,0,IF(SUM(M6:M12)>SUM(K6:K12),0,SUM(K6:K12)-SUM(M6:M12))) -> 1750 | N13: 42 | O13: =Q13+S13 -> 180 | P13: =IF(Q13=0,"",N14) -> v/b. | Q13: =IF(Q6+S6=0,0,IF(SUM(Q6:Q12)>SUM(S6:S12),0,SUM(S6:S12)-SUM(Q6:Q12))) -> 180 | R13: =IF(S13=0,"",N14) ->  | S13: =IF(Q6+S6=0,0,IF(SUM(S6:S12)>SUM(Q6:Q12),0,SUM(Q6:Q12)-SUM(S6:S12))) -> 0 | T13: 1 | U13: =W13+Y13 -> 50 | V13: =IF(W11=0,"",T12) ->  | W13: =IF(W6+Y6=0,0,IF(SUM(W6:W12)>SUM(Y6:Y12),0,SUM(Y6:Y12)-SUM(W6:W12))) -> 0 | X13: =IF(Y13=0,"",T14) -> v/e | Y13: =IF(W6+Y6=0,0,IF(SUM(Y6:Y12)>SUM(W6:W12),0,SUM(W6:W12)-SUM(Y6:Y12))) -> 50 | AE13: =N24 -> 0 | AF13: =O24 -> 0 | AG13: =P16 -> 0 | AH13: 0
B14: =IF(B13="","spb",IF(B13>20,"v/b.","v/e")) -> v/b. | E14: =IF(E6+G6=0,"",SUM(E6:E13)) -> 100 | G14: =IF(E6+G6=0,"",SUM(G6:G13)) -> 100 | H14: =IF(H13="","spb",IF(H13>20,"v/b.","v/e")) -> v/b. | K14: =IF(K6+M6=0,"",SUM(K6:K13)) -> 2000 | M14: =IF(K6+M6=0,"",SUM(M6:M13)) -> 2000 | N14: =IF(N13="","spb",IF(N13>20,"v/b.","v/e")) -> v/b. | Q14: =IF(Q6+S6=0,"",SUM(Q6:Q13)) -> 300 | S14: =IF(Q6+S6=0,"",SUM(S6:S13)) -> 300 | T14: =IF(T13="","spb",IF(T13>20,"v/b.","v/e")) -> v/e | W14: =IF(W6+Y6=0,"",SUM(W6:W13)) -> 50 | Y14: =IF(W6+Y6=0,"",SUM(Y6:Y13)) -> 50 | AE14: =T24 -> 0 | AF14: =U24 -> 0 | AG14: =V16 -> 0 | AH14: 0
AE15: =B35 -> 0 | AF15: =C35 -> 0 | AG15: =D27 -> 0 | AH15: 0
AE16: =H35 -> 0 | AF16: =I35 -> 0 | AG16: =J27 -> 0 | AH16: 0
AE17: =N35 -> 0 | AF17: =O35 -> 0 | AG17: =P27 -> 0 | AH17: 0
AE18: =T35 -> 0 | AF18: =U35 -> 0 | AG18: =V27 -> 0 | AH18: 0
AE19: =B46 -> 0 | AF19: =C46 -> 0 | AG19: =D38 -> 0 | AH19: 0
AE20: =H46 -> 0 | AF20: =I46 -> 0 | AG20: =J38 -> 0 | AH20: 0
AE21: =N46 -> 0 | AF21: =O46 -> 0 | AG21: =P38 -> 0 | AH21: 0
AE22: =T46 -> 0 | AF22: =U46 -> 0 | AG22: =V38 -> 0 | AH22: 0
AE23: =B58 -> 68 | AF23: =C58 -> 50 | AG23: =D50 -> 9000 Résultat | AH23: 9000
AE24: 1 | AF24: 0
AE25: 2 | AF25: 0
AE26: 3 | AF26: 0
AE27: 4 | AF27: 0
AE28: 5 | AF28: 0
AE29: 6 | AF29: 0
AE30: 7 | AF30: 0
AE31: 8 | AF31: 0
AE32: 9 | AF32: 0
AE33: 10 | AF33: 0
AE34: 11 | AF34: 0
AE35: 12 | AF35: 0
AE36: 13 | AF36: 0
AE37: 14 | AF37: 0
AE38: 15 | AF38: 0
AE39: 16 | AF39: 0
AE40: 17 | AF40: 0
AE41: 18 | AF41: 0
AE42: 19 | AF42: 0
AE43: 20 | AF43: 0
AE44: 41 | AF44: 0
AE45: 42 | AF45: 0
AE46: 43 | AF46: 0
AE47: 44 | AF47: 0
AE48: 45 | AF48: 0
AE49: 46 | AF49: 0
D50: 9000 Résultat | N50: B I L A N final | AE50: 47 | AF50: 0
B51: 1 | D51: =IF(E51=0,"",VLOOKUP(B51,table,4,FALSE)) -> Blab | E51: =VLOOKUP(B51,table,2,FALSE) -> 50 | F51: =IF(G51=0,"",VLOOKUP(H51,table,4,FALSE)) ->  | G51: =VLOOKUP(H51,table,2,FALSE) -> 0 | H51: 2 | N51: Actif | T51: Passif | AE51: 48 | AF51: 0
B52: 3 | E52: 0 | G52: 0 | H52: 4 | M52: 41 | N52: =IF(S52=0,"",VLOOKUP(M52,table,3,FALSE)) -> 1000 Caisse | S52: =VLOOKUP(M52,table,2,FALSE) -> 80 | T52: =IF(Y52=0,"",VLOOKUP(Z52,table,3,FALSE)) -> 2000 Fournisseurs | Y52: =VLOOKUP(Z52,table,2,FALSE) -> 180 | Z52: 42 | AE52: 49 | AF52: 0
B53: 5 | E53: 0 | G53: 0 | H53: 6 | M53: 43 | N53: =IF(S53=0,"",VLOOKUP(M53,table,3,FALSE)) -> 1010 Poste | S53: 1750 | T53: =IF(Y53=0,"",VLOOKUP(Z53,table,3,FALSE)) ->  | Y53: =VLOOKUP(Z53,table,2,FALSE) -> 0 | Z53: 44 | AE53: 50 | AF53: 0
B54: 7 | E54: 0 | G54: 0 | H54: 8 | M54: 45 | N54: =IF(S54=0,"",VLOOKUP(M54,table,3,FALSE)) ->  | S54: 0 | T54: =IF(Y54=0,"",VLOOKUP(Z54,table,3,FALSE)) ->  | Y54: =VLOOKUP(Z54,table,2,FALSE) -> 0 | Z54: 46 | AE54: 51 | AF54: 0
B55: 9 | E55: 0 | G55: 0 | H55: 10 | M55: 47 | S55: 0 | Y55: 0 | Z55: 48 | AE55: 52 | AF55: 0
B56: 11 | E56: 0 | G56: 0 | H56: 12 | M56: 49 | S56: 0 | Y56: 0 | Z56: 50 | AE56: 53 | AF56: 0
B57: 13 | E57: 0 | H57: 14 | M57: 51 | S57: 0 | Y57: 0 | Z57: 52 | AE57: 54 | AF57: 0
B58: 68 | C58: =E58+G58 -> 50 | D58: =IF(E58=0,"","spb") ->  | E58: =IF(E51+G51=0,0,IF(SUM(E51:E57)>SUM(G51:G57),0,SUM(G51:G57)-SUM(E51:E57))) -> 0 | F58: =IF(G58=0,"","spb") -> spb | G58: =IF(E51+G51=0,0,IF(SUM(G51:G57)>SUM(E51:E57),0,SUM(E51:E57)-SUM(G51:G57))) -> 50 | M58: 53 | S58: =VLOOKUP(M58,table,2,FALSE) -> 0 | Y58: 0 | Z58: 54 | AE58: 55 | AF58: 0
E59: =IF(E51+G51=0,"",SUM(E51:E58)) -> 50 | G59: =IF(E51+G51=0,"",SUM(G51:G58)) -> 50 | M59: 55 | S59: =VLOOKUP(M59,table,2,FALSE) -> 0 | Y59: 0 | Z59: 56 | AE59: 56 | AF59: 0
M60: 57 | S60: =VLOOKUP(M60,table,2,FALSE) -> 0 | T60: =IF(Y60=0,"",VLOOKUP(Z60,table,3,FALSE)) -> 9000 Résultat | Y60: =VLOOKUP(Z60,table,2,FALSE) -> 50 | Z60: 68 | AE60: 57 | AF60: 0
M61: 67 | R61: =IF(S61=0,"","spb") ->  | S61: =IF(S52+V52=0,0,IF(SUM(S52:S60)>SUM(V52:V60),0,SUM(V52:V60)-SUM(S52:S60))) -> 0 | X61: =IF(Y61=0,"","spb") ->  | Y61: =IF(W52+Y52=0,0,IF(SUM(Y52:Y60)>SUM(W52:W60),0,SUM(W52:W60)-SUM(Y52:Y60))) -> 0 | AE61: 38 | AF61: 0
S62: =IF(S52+V52=0,"",SUM(S52:S61)) -> 1830 | Y62: =IF(W52+Y52=0,"",SUM(Y52:Y61)) -> 230
N67: PS: Les boutons macros (affichage avec "Voir les boutons") situés en haut de l'écran, sont déjà affectés aux
P68: macros ecr_1, ecr_2, ecr_3,....ecr_20; alternativement del_1, del_2, del_3,...del_20.
P69: Il suffit donc de créer une macro ecr_X pour chaque écriture et une macro del_X
P70: pour effacer les écritures (X = no de l'écriture).
AB72: © Yvan Péguiron - mars 2003- déc. 2006
W79: Montrer ou cacher les boutons macro du haut de la page.
K82: Afficher ou masquer les petits carrés bleus ou gris.
Y83: Si des titres de comptes ont été rentrés à la main, la programmation
Y84: de ces titres en fonction du petit numéro disparaît.
K85: Petits ou grands comptes : | Y85: Ces boutons remettrent les formules initiales .
K86: RowH est la hauteur des cellules. (1 = 17 pixels, 2 = 18, 3 = 19, etc) | Y86: Sans no est utile pourdes libellés clairs dans le Résultat
Y88: Taille de la police pour les montants (Les libellés sont bloqués à 9).
K89: Choix de la grandeur du grand-livre :
K90: Il est recommandé de cliquer sur le bouton gris d'abord, | Y90: Adaptez le grand-livre à votre écran ou à votre beamer
K91: (5 rangs de 8 lignes) puis de choisir les options. | Y91: avec cette commande de zoom.
Y92: Zoom min. et max. pour les ronds jaunes.
K93: Afficher le plan comptable dans une deuxième fenête.
K94: Ctrl + p affiche un menu déroulant | Y94: Oter la protection (idem Outils - Protection)
K95: Le compte de résultat peut s'afficher avec 8 ou 15 lignes.
K96: (Bilan; 7 ou 14 lignes) | Y96: Tracer ou non les lignes dans les comptes.
K97: Une présentation à deux niveaux est possible : | Y97: Afficher les en-têtes de lignes et colonnes
K98: L'indice 1 ou 2 permet de régler la hauteur de la clôture intermédiaire | Y98: Si vous souhaitez placer les symboles dans les titres,
E99: Ne pas oublier les racourcis clavier | Y99: il faut les copier et les coller à l'endroit voulu, manuellement !
Y100: Largeur standard des colonnes.
K102: Effacer le contenu de tous les comptes. Les | Y102: Attention, ce bouton n'efface pas seulement les écritures mais
K103: titres et la programmation des soldes demeurent. | Y103: vide les carrés bleus et gris. Ecrivez "oui" si vous êtes sûr !
K106: Le premier compte peut être agrandi et passer de 8 à 19 lignes.
V107: Formulaire permettant d'afficher à l'écran les colonnes de comptes choisies.
V108: (Utile pour corriger des GL de plus de 4 colonnes de comptes)
B160: Dernières révisions :
B161: 2014-04-02 | E161: Formulaires pour virement du résultat
B162: 2014-05-03 | E162: Choix plan comptable 1997 / 2013 ou allemand
B163: 2014-06-16 | E163: Corrigé Blitz
B168: Problème sur Mac avec la nouvelle version Excel 2011
B170: Pour une raison inconnue, les noms de macros composés de 3 lettres et 1 chiffre ne sont plus admis. C’est évidemment une tuile pour toutes les macros « ecr » et « del » qui sont la clé de l’application !
B172: Au chargement, un message nous avise qu’Excel a glissé des « _ » où bon lui semble, mais que ces changements doivent être faits manuellement dans les macros !
B174: Solution pour des nouveaux exercices :
B176: 1) Utiliser la version GL_auto_vide_Mac2011.xls ou Gl_auto_vide_PC2011.xls.
B177: 2) Lorsque vous créez les macros « ecr » et « del », les appeler maintenant « ecr_ » et « del_ ». Par exemple, pour l’écriture 1, créer les macros « ecr_1 » et « del_1 ».
B180: Solution pour rendre compatible des anciens exercices :
B182: 1) Aller dans l’éditeur de macro (par exemple : Outils – Macro – Macros… - Modifier)
B183: 2) Edition – Remplacer
B193: Choisir « Projet en cours » puis Remplacer tout
B195: Il faut remplacer :
B196: a) ecr par ecr_
B197: b) del par del_
B198: c) del_tout par deltout
B200: Revenir dans le classeur Excel et sauver la nouvelle version sous un autre nom.
A203: Virements de clôture programmés grâce à 2 formulaires
A204: accecibles depuis le formulaire général
Q206: Programmation du bouton R
A210: 210 | D210: D | E210: E | F210: F | G210: G | H210: H | P210: P | Q210: Q | R210: R | S210: S
A211: 211
A212: 212 | D212: 2850 Privé | P212: 2800 Capital
A213: 213 | E213: 5000
A214: 214
A215: 215 | D215: =IF(E215>0,"PN","") ->  | F215: =IF(G215>0,"BN","") -> BN | G215: ='Grand-livre'!$E$89 -> 14100 | Q215: dim. Cap | S215: aug. Cap
A216: 216
A217: 217
A218: 218
A219: 219
A220: 220
A221: 221
A222: 222 | D222: v/bi | E222: 4500 | F222: =IF(G222=0,"",B223) ->  | P222: =IF(Q222=0,"",N223) ->  | Q222: =IF(Q213+S213=0,0,IF(SUM(Q213:Q221)>SUM(S213:S221),0,SUM(S213:S221)-SUM(Q213:Q221))) -> 0 | R222: =IF(S222=0,"",N223) ->  | S222: =IF(Q213+S213=0,0,IF(SUM(S213:S221)>SUM(Q213:Q221),0,SUM(Q213:Q221)-SUM(S213:S221))) -> 0
A223: 223 | E223: =IF(E213+G213=0,"",SUM(E213:E222)) -> 9500 | G223: =IF(E213+G213=0,"",SUM(G213:G222)) -> 14100 | Q223: =IF(Q213+S213=0,"",SUM(Q213:Q222)) ->  | S223: =IF(Q213+S213=0,"",SUM(S213:S222)) -> 
A224: 224
A226: Utilisation des macros :
A228: Bouton R (macro 24) pour viré le
D229: résultat dans un compte.
D230: (par exemple, résultat à Privé)
A233: Bouton C (macro 25) pour virer le solde
B234: d'un compte dans un autre compte.
B235: (par exemple, Privé à Capital)
S237: Programmation du bouton C
